Workbook

Sheet т.1
I1: Таблица 1
A2: Количество населения и общедоступных библиотек
A3: Министерства культуры Республики Саха (Якутия)
A5: № | B5: ЦБС | C5: Население ( чел. в тыс.) | F5: Количество библиотек
C6: Всего | D6: гор. | E6: сельск. | F6: 2020 | H6: 2021
F7: всего | G7: из них в | H7: всего | I7: из них в
G8: с/мест. | I8: с/мест
A9: 1 | B9: Абыйская | C9: =D9+E9 -> 3.9 | D9: 2 | E9: 1.9 | F9: 7 | G9: 5 | H9: 7 | I9: 5
A10: 2 | B10: Аллаиховская | C10: 2.7 | D10: 2.1 | E10: 0.6 | F10: 6 | G10: 4 | H10: 6 | I10: 4
A11: 3 | B11: Амгинская | C11: 16.8 | E11: 16.8 | F11: 16 | G11: 16 | H11: 16 | I11: 16
A12: 4 | B12: Анабарская | C12: 3.7 | E12: 3.7 | F12: 3 | G12: 3 | H12: 3 | I12: 3
A13: 5 | B13: Булунская | C13: 8.5 | D13: 4.7 | E13: 3.8 | F13: 8 | G13: 6 | H13: 8 | I13: 6
A14: 6 | B14: Верхневилюйская | C14: 21.2 | E14: 21.2 | F14: 23 | G14: 23 | H14: 23 | I14: 23
A15: 7 | B15: Верхнеколымская | C15: 4 | D15: 2.7 | E15: 1.3 | F15: 7 | G15: 5 | H15: 7 | I15: 5
A16: 8 | B16: Верхоянская | C16: 11 | D16: 4.8 | E16: 6.2 | F16: 17 | G16: 13 | H16: 17 | I16: 13
A17: 9 | B17: Вилюйская | C17: 25.1 | D17: 14 | E17: 11.1 | F17: 24 | G17: 20 | H17: 24 | I17: 20
A18: 10 | B18: Горная | C18: 12.3 | E18: 12.3 | F18: 9 | G18: 9 | H18: 9 | I18: 9
A19: 11 | B19: Жиганская | C19: 4.2 | E19: 4.2 | F19: 5 | G19: 5 | H19: 5 | I19: 5
A20: 12 | B20: Кобяйская | C20: 12 | D20: 3.5 | E20: 8.5 | F20: 17 | G20: 15 | H20: 17 | I20: 15
A21: 13 | B21: Ленская | C21: 36.5 | D21: 31.8 | E21: 4.7 | F21: 21 | G21: 14 | H21: 21 | I21: 14
A22: 14 | B22: Момская | C22: 4.1 | E22: 4.1 | F22: 7 | G22: 7 | H22: 7 | I22: 7
A23: 15 | B23: Намская | C23: 25.1 | E23: 25.1 | F23: 20 | G23: 20 | H23: 20 | I23: 20
A24: 16 | B24: Нижнеколымская | C24: 4.2 | D24: 2.5 | E24: 1.7 | F24: 6 | G24: 3 | H24: 6 | I24: 3
A25: 17 | B25: Нюрбинская | C25: 23.7 | D25: 9.8 | E25: 13.9 | F25: 23 | G25: 20 | H25: 23 | I25: 20
A26: 18 | B26: Оймяконская | C26: 7.9 | D26: 5.1 | E26: 2.8 | F26: 9 | G26: 6 | H26: 9 | I26: 6
A27: 19 | B27: Олекминская | C27: 24.4 | D27: 9.1 | E27: 15.3 | F27: 27 | G27: 25 | H27: 27 | I27: 25
A28: 20 | B28: Оленекская | C28: 4.3 | E28: 4.3 | F28: 5 | G28: 5 | H28: 5 | I28: 5
A29: 21 | B29: Среднеколымская | C29: 7.3 | D29: 3.5 | E29: 3.8 | F29: 11 | G29: 9 | H29: 11 | I29: 9
A30: 22 | B30: Сунтарская* | C30: 23.7 | E30: 23.7 | F30: 21 | G30: 21 | H30: 22 | I30: 22
A31: 23 | B31: Таттинская | C31: 16.3 | E31: 16.3 | F31: 15 | G31: 15 | H31: 15 | I31: 15
A32: 24 | B32: Томпонская | C32: 12.6 | D32: 7.2 | E32: 5.4 | F32: 13 | G32: 10 | H32: 13 | I32: 10
A33: 25 | B33: Усть-Алданская | C33: 20.5 | E33: 20.5 | F33: 28 | G33: 28 | H33: 28 | I33: 28
A34: 26 | B34: Усть-Майская | C34: 7.2 | D34: 5.2 | E34: 2 | F34: 10 | G34: 5 | H34: 10 | I34: 5
A35: 27 | B35: Усть-Янская | C35: 7 | D35: 3.8 | E35: 3.2 | F35: 9 | G35: 5 | H35: 9 | I35: 5
A36: 28 | B36: Хангаласская | C36: 33 | D36: 15.6 | E36: 17.4 | F36: 24 | G36: 21 | H36: 24 | I36: 21
A37: 29 | B37: Чурапчинская | C37: 21.1 | E37: 21.1 | F37: 19 | G37: 19 | H37: 19 | I37: 19
A38: 30 | B38: Мирнинская | C38: 71.9 | D38: 69.5 | E38: 2.4 | F38: 11 | G38: 3 | H38: 11 | I38: 3
A39: 31 | B39: Нерюнгринская | C39: 74.9 | D39: 73.8 | E39: 1.1 | F39: 8 | G39: 2 | H39: 8 | I39: 2
A40: 32 | B40: Эвено-Бытантайская | C40: 2.9 | E40: 2.9 | F40: 3 | G40: 3 | H40: 3 | I40: 3
A41: 33 | B41: Якутская | C41: 347.2 | D41: 330.6 | E41: 16.6 | F41: 18 | G41: 4 | H41: 18 | I41: 4
A42: 34 | B42: Алданская | C42: 38.8 | D42: 34.8 | E42: 4 | F42: 9 | G42: 5 | H42: 9 | I42: 5
A43: 35 | B43: М.-Кангаласская | C43: 31.4 | D43: 4.4 | E43: 27 | F43: 31 | G43: 30 | H43: 31 | I43: 30
A44: 36 | B44: ГБ г.Нерюнгри | F44: 1 | H44: 1
A45: 37 | B45: Бердигестях ДБ | F45: 1 | G45: 1 | H45: 1 | I45: 1
A46: 38 | B46: Б-ка ГО "п. Жатай" | C46: 10.5 | D46: 10.5 | F46: 1 | H46: 1
A47: 39 | B47: Алданский БИЦ | F47: 2 | G47: 1 | H47: 2 | I47: 1
A48: 40 | B48: Томмотский БИЦ | F48: 3 | G48: 1 | H48: 3 | I48: 1
B49: Итого по МБ | C49: 981.9 | D49: =SUM(D9:D48) -> 651 | E49: 330.9 | F49: 498 | G49: 407 | H49: 499 | I49: 408
B50: НБ РС(Я) | C50: 0 | F50: 1 | H50: 1
B51: Филиал НБ "ДТК" | C51: 0 | F51: 1 | H51: 1
B52: РБС | C52: 0 | F52: 1 | H52: 1
B53: Итого по РС(Я) | C53: =SUM(C49:C52) -> 981.9 | D53: 651 | E53: 330.9 | F53: 501 | G53: 407 | H53: 502 | I53: 408
B54: * - библиотеки, где прошла реорганизация

Sheet т.2
G1: Таблица 2
A2: Количество пользователей и процент охвата населения
A3: библиотечным обслуживанием
A5: № | B5: ЦБС | C5: кол-во пользователей | F5: % охвата населения библ.обслуж.
C6: 2020 | D6: 2021 | E6: "+ -" | F6: 2020 | G6: 2021 | H6: "+ -"
A7: 1 | B7: Абыйская | C7: 1805 | D7: 2219 | E7: =D7-C7 -> 414 | F7: 45.125 | G7: =D7*100/т.1!C9/1000 -> 56.8974359 | H7: =G7-F7 -> 11.7724359
A8: 2 | B8: Аллаиховская | C8: 755 | D8: 1314 | E8: =D8-C8 -> 559 | F8: 27.96296296 | G8: =D8*100/т.1!C10/1000 -> 48.66666667 | H8: =G8-F8 -> 20.7037037
A9: 3 | B9: Амгинская | C9: 7401 | D9: 9468 | E9: 2067 | F9: 44.05357143 | G9: =D9*100/т.1!C11/1000 -> 56.35714286 | H9: 12.30357143
A10: 4 | B10: Анабарская | C10: 1870 | D10: 1141 | E10: -729 | F10: 50.54054054 | G10: =D10*100/т.1!C12/1000 -> 30.83783784 | H10: -19.7027027
A11: 5 | B11: Булунская | C11: 5832 | D11: 6917 | E11: 1085 | F11: 68.61176471 | G11: =D11*100/т.1!C13/1000 -> 81.37647059 | H11: 12.76470588
A12: 6 | B12: Верхневилюйская | C12: 8184 | D12: 12911 | E12: 4727 | F12: 38.97142857 | G12: =D12*100/т.1!C14/1000 -> 60.9009434 | H12: 21.92951482
A13: 7 | B13: Верхнеколымская | C13: 3552 | D13: 3103 | E13: -449 | F13: 88.8 | G13: =D13*100/т.1!C15/1000 -> 77.575 | H13: -11.225
A14: 8 | B14: Верхоянская | C14: 3703 | D14: 5875 | E14: =D14-C14 -> 2172 | F14: 33.36036036 | G14: =D14*100/т.1!C16/1000 -> 53.40909091 | H14: 20.04873055
A15: 9 | B15: Вилюйская | C15: 9657 | D15: 8744 | E15: -913 | F15: 38.628 | G15: =D15*100/т.1!C17/1000 -> 34.83665339 | H15: -3.791346614
A16: 10 | B16: Горная | C16: 5733 | D16: 6298 | E16: 565 | F16: 57.5 | G16: 57.5 | H16: 0
A17: 11 | B17: Жиганская | C17: 3841 | D17: 3410 | E17: -431 | F17: 93.68292683 | G17: =D17*100/т.1!C19/1000 -> 81.19047619 | H17: -12.49245064
A18: 12 | B18: Кобяйская | C18: 8498 | D18: 8961 | E18: 463 | F18: 70.23140496 | G18: =D18*100/т.1!C20/1000 -> 74.675 | H18: 4.443595041
A19: 13 | B19: Ленская | C19: 9603 | D19: 14515 | E19: 4912 | F19: 26.45454545 | G19: =D19*100/т.1!C21/1000 -> 39.76712329 | H19: 13.31257783
A20: 14 | B20: Момская | C20: 2080 | D20: 2057 | E20: -23 | F20: 52 | G20: =D20*100/т.1!C22/1000 -> 50.17073171 | H20: -1.829268293
A21: 15 | B21: Намская | C21: 6866 | D21: 13156 | E21: 6290 | F21: 27.57429719 | G21: =D21*100/т.1!C23/1000 -> 52.41434263 | H21: 24.84004544
A22: 16 | B22: Нижнеколымская | C22: 2370 | D22: 2282 | E22: -88 | F22: 55.11627907 | G22: =D22*100/т.1!C24/1000 -> 54.33333333 | H22: -0.7829457364
A23: 17 | B23: Нюрбинская | C23: 19248 | D23: 19252 | E23: 4 | F23: 81.55932203 | G23: =D23*100/т.1!C25/1000 -> 81.23206751 | H23: -0.3272545233
A24: 18 | B24: Оймяконская | C24: 2848 | D24: 5947 | E24: 3099 | F24: 36.05063291 | G24: =D24*100/т.1!C26/1000 -> 75.27848101 | H24: 39.2278481
A25: 19 | B25: Олекминская | C25: 8096 | D25: 11021 | E25: 2925 | F25: 33.04489796 | G25: =D25*100/т.1!C27/1000 -> 45.16803279 | H25: 12.12313483
A26: 20 | B26: Оленекская | C26: 3155 | D26: 3158 | E26: 3 | F26: 75.11904762 | G26: =D26*100/т.1!C28/1000 -> 73.44186047 | H26: -1.677187154
A27: 21 | B27: Среднеколымская | C27: 4194 | D27: 4591 | E27: 397 | F27: 57.45205479 | G27: =D27*100/т.1!C29/1000 -> 62.89041096 | H27: 5.438356164
A28: 22 | B28: Сунтарская* | C28: 14622 | D28: 15679 | E28: 1057 | F28: 62.48717949 | G28: =D28*100/т.1!C30/1000 -> 66.15611814 | H28: 3.668938656
A29: 23 | B29: Таттинская | C29: 9404 | D29: 7324 | E29: -2080 | F29: 58.04938272 | G29: =D29*100/т.1!C31/1000 -> 44.93251534 | H29: -13.11686738
A30: 24 | B30: Томпонская | C30: 6266 | D30: 6632 | E30: 366 | F30: 50.128 | G30: =D30*100/т.1!C32/1000 -> 52.63492063 | H30: 2.506920635
A31: 25 | B31: Усть-Алданская | C31: 19659 | D31: 20005 | E31: 346 | F31: 95.89756098 | G31: =D31*100/т.1!C33/1000 -> 97.58536585 | H31: 1.687804878
A32: 26 | B32: Усть-Майская | C32: 4975 | D32: 5024 | E32: 49 | F32: 66.33333333 | G32: =D32*100/т.1!C34/1000 -> 69.77777778 | H32: 3.444444444
A33: 27 | B33: Усть-Янская | C33: 4056 | D33: 3786 | E33: -270 | F33: 57.94285714 | G33: =D33*100/т.1!C35/1000 -> 54.08571429 | H33: -3.857142857
A34: 28 | B34: Хангаласская | C34: 22365 | D34: 31587 | E34: 9222 | F34: 68.18597561 | G34: =D34*100/т.1!C36/1000 -> 95.71818182 | H34: 27.53220621
A35: 29 | B35: Чурапчинская | C35: 9554 | D35: 9977 | E35: 423 | F35: 45.4952381 | G35: =D35*100/т.1!C37/1000 -> 47.28436019 | H35: 1.789122094
A36: 30 | B36: Мирнинская | C36: 14307 | D36: 17022 | E36: 2715 | F36: 19.81578947 | G36: =D36*100/т.1!C38/1000 -> 23.67454798 | H36: 3.85875851
A37: 31 | B37: Нерюнгринская | C37: 13145 | D37: 13145 | E37: 0 | F37: 30.4 | G37: 30.4 | H37: 0
A38: 32 | B38: Эвено-Бытантай | C38: 970 | D38: 1425 | E38: =D38-C38 -> 455 | F38: 34.64285714 | G38: =D38*100/т.1!C40/1000 -> 49.13793103 | H38: =G38-F38 -> 14.49507389
A39: 33 | B39: Якутская | C39: 34180 | D39: 61159 | E39: 26979 | F39: 10.06181925 | G39: =D39*100/т.1!C41/1000 -> 17.61491935 | H39: 7.553100103
A40: 34 | B40: Алданская | C40: 8634 | D40: 7791 | E40: =D40-C40 -> -843 | F40: 39.6 | G40: 39.6 | H40: =G40-F40 -> 0
A41: 35 | B41: М.-Кангаласская | C41: 14898 | D41: 16360 | E41: 1462 | F41: 48.21359223 | G41: =D41*100/т.1!C43/1000 -> 52.10191083 | H41: =G41-F41 -> 3.888318595
A42: 36 | B42: ГБ г.Нерюнгри | C42: 6802 | D42: 8449 | E42: 1647
A43: 37 | B43: Бердигестях ДБ | C43: 1225 | D43: 1449 | E43: 224
A44: 38 | B44: Б-ка ГО "п. Жатай" | C44: 1573 | D44: 2746 | E44: 1173 | F44: 15.3 | G44: =D44*100/т.1!C46/1000 -> 26.15238095 | H44: 10.85238095
A45: 39 | B45: Алданский БИЦ | C45: 3105 | D45: 3565 | E45: 460
A46: 40 | B46: Томмотский БИЦ | C46: 3758 | D46: 4804 | E46: 1046
B47: Итого по МБ | C47: =SUM(C7:C46) -> 312789 | D47: =SUM(D7:D46) -> 384269 | E47: =SUM(E7:E46) -> 71480 | F47: 32.2 | G47: =D47*100/т.1!C49/1000 -> 39.13524799 | H47: =G47-F47 -> 6.935247989
B48: НБ РС(Я) | C48: 29402 | D48: 36464 | E48: =D48-C48 -> 7062
B49: Филиал НБ "ДТК" | C49: 5415 | D49: 8069 | E49: =D49-C49 -> 2654
B50: РБС | C50: 2256 | D50: 2270 | E50: =D50-C50 -> 14
B51: Итого по РС(Я) | C51: =SUM(C47:C50) -> 349862 | D51: =SUM(D47:D50) -> 431072 | E51: =SUM(E47:E50) -> 81210 | F51: 36 | G51: =D51*100/т.1!C53/1000 -> 43.901823 | H51: =G51-F51 -> 7.901822996

Sheet 2.1
I1: Таблица 2.1
A2: Количество пользователей
A4: № | B4: ЦБС | C4: всего | D4: из них пользователей, обслуженных в стационарных условиях | G4: из них во внестац. условиях | H4: из них удал. польз. | I4: Читаемость
D5: всего | E5: до 14 лет | F5: от 15-30
A6: 1 | B6: Абыйская | C6: 2219 | D6: 1657 | E6: 271 | F6: 142 | G6: 562 | I6: =т.6!D5/т.2!D7 -> 17.34294727
A7: 2 | B7: Аллаиховская | C7: 1314 | D7: 1085 | E7: 405 | F7: 169 | G7: 229 | I7: =т.6!D6/т.2!D8 -> 33.47488584
A8: 3 | B8: Амгинская | C8: 9468 | D8: 6850 | E8: 2431 | F8: 1359 | G8: 1878 | H8: 740 | I8: =т.6!D7/т.2!D9 -> 14.4916561
A9: 4 | B9: Анабарская | C9: 1141 | D9: 988 | E9: 331 | F9: 123 | G9: 153 | I9: =т.6!D8/т.2!D10 -> 18.49342682
A10: 5 | B10: Булунская | C10: 6917 | D10: 5826 | E10: 1379 | F10: 1638 | G10: 1091 | I10: =т.6!D9/т.2!D11 -> 22.53534769
A11: 6 | B11: Верхневилюйская | C11: 12911 | D11: 10593 | E11: 3495 | F11: 2547 | G11: 2309 | H11: 9 | I11: =т.6!D10/т.2!D12 -> 22.66764774
A12: 7 | B12: Верхнеколымская | C12: 3103 | D12: 2230 | E12: 779 | F12: 407 | G12: 860 | H12: 13 | I12: =т.6!D11/т.2!D13 -> 34.49307122
A13: 8 | B13: Верхоянская | C13: 5875 | D13: 5417 | E13: 1511 | F13: 987 | G13: 458 | I13: =т.6!D12/т.2!D14 -> 20.30893617
A14: 9 | B14: Вилюйская | C14: 8744 | D14: 8607 | E14: 2634 | F14: 1992 | G14: 137 | I14: =т.6!D13/т.2!D15 -> 21.51589661
A15: 10 | B15: Горная | C15: 6298 | D15: 4633 | E15: 1228 | F15: 1197 | G15: 942 | H15: 723 | I15: =т.6!D14/т.2!D16 -> 23.58272467
A16: 11 | B16: Жиганская | C16: 3410 | D16: 2876 | E16: 625 | F16: 365 | G16: 386 | H16: 148 | I16: =т.6!D15/т.2!D17 -> 16.40997067
A17: 12 | B17: Кобяйская | C17: 8961 | D17: 6434 | E17: 2453 | F17: 1448 | G17: 2483 | H17: 44 | I17: =т.6!D16/т.2!D18 -> 16.67950006
A18: 13 | B18: Ленская | C18: 14515 | D18: 9336 | E18: 4397 | F18: 1650 | G18: 5001 | H18: 178 | I18: =т.6!D17/т.2!D19 -> 21.61122976
A19: 14 | B19: Момская | C19: 2057 | D19: 1817 | E19: 481 | F19: 337 | G19: 240 | I19: =т.6!D18/т.2!D20 -> 14.79338843
A20: 15 | B20: Намская | C20: 13156 | D20: 10868 | E20: 3833 | F20: 2652 | G20: 2171 | H20: 117 | I20: =т.6!D19/т.2!D21 -> 17.26885071
A21: 16 | B21: Нижнеколымская | C21: 2282 | D21: 2282 | E21: 789 | F21: 633 | I21: =т.6!D20/т.2!D22 -> 20.95749343
A22: 17 | B22: Нюрбинская | C22: 19252 | D22: 9261 | E22: 2750 | F22: 1930 | G22: 9991 | I22: =т.6!D21/т.2!D23 -> 9.863286931
A23: 18 | B23: Оймяконская | C23: 5947 | D23: 4631 | E23: 1347 | F23: 900 | G23: 1316 | I23: =т.6!D22/т.2!D24 -> 17.16041702
A24: 19 | B24: Олекминская | C24: 11021 | D24: 9626 | E24: 4241 | F24: 1777 | G24: 1395 | I24: =т.6!D23/т.2!D25 -> 17.23527811
A25: 20 | B25: Оленекская | C25: 3158 | D25: 2293 | E25: 892 | F25: 235 | G25: 808 | H25: 57 | I25: =т.6!D24/т.2!D26 -> 12.10449652
A26: 21 | B26: Среднеколымская | C26: 4591 | D26: 2582 | E26: 604 | F26: 755 | G26: 2009 | I26: =т.6!D25/т.2!D27 -> 12.29840993
A27: 22 | B27: Сунтарская* | C27: 15679 | D27: 12439 | E27: 3789 | F27: 3301 | G27: 2997 | H27: 243 | I27: =т.6!D26/т.2!D28 -> 15.53389885
A28: 23 | B28: Таттинская | C28: 7324 | D28: 4609 | E28: 2004 | F28: 1070 | G28: 2499 | H28: 216 | I28: =т.6!D27/т.2!D29 -> 20.98853086
A29: 24 | B29: Томпонская | C29: 6632 | D29: 5967 | E29: 2324 | F29: 1470 | G29: 534 | H29: 131 | I29: =т.6!D28/т.2!D30 -> 20.95627262
A30: 25 | B30: Усть-Алданская | C30: 20005 | D30: 11825 | E30: 4762 | F30: 2576 | G30: 8180 | I30: =т.6!D29/т.2!D31 -> 19.61734566
A31: 26 | B31: Усть-Майская | C31: 5024 | D31: 4058 | E31: 1550 | F31: 1152 | G31: 966 | I31: =т.6!D30/т.2!D32 -> 29.98785828
A32: 27 | B32: Усть-Янская | C32: 3786 | D32: 3185 | E32: 1150 | F32: 999 | G32: 601 | I32: =т.6!D31/т.2!D33 -> 11.96804015
A33: 28 | B33: Хангаласская | C33: 31587 | D33: 11259 | E33: 3962 | F33: 1996 | G33: 2048 | H33: 18280 | I33: =т.6!D32/т.2!D34 -> 9.560705353
A34: 29 | B34: Чурапчинская | C34: 9977 | D34: 8147 | E34: 2307 | F34: 1589 | G34: 1731 | H34: 99 | I34: =т.6!D33/т.2!D35 -> 17.50215496
A35: 30 | B35: Мирнинская | C35: 17022 | D35: 16783 | E35: 5659 | F35: 3575 | G35: 209 | H35: 30 | I35: =т.6!D34/т.2!D36 -> 20.20761368
A36: 31 | B36: Нерюнгринская | C36: 13145 | D36: 11977 | E36: 3670 | F36: 2989 | G36: 618 | H36: 550 | I36: =т.6!D35/т.2!D37 -> 23.04549258
A37: 32 | B37: Эвено-Бытантайская | C37: 1425 | D37: 1080 | E37: 433 | F37: 170 | G37: 345 | I37: =т.6!D36/т.2!D38 -> 27.03368421
A38: 33 | B38: Якутская | C38: 61159 | D38: 54649 | E38: 19185 | F38: 13133 | G38: 6283 | H38: 227 | I38: =т.6!D37/т.2!D39 -> 20.89813437
A39: 34 | B39: Алданская | C39: 7791 | D39: 6099 | E39: 1397 | F39: 1376 | G39: 1277 | H39: 415 | I39: =т.6!D38/т.2!D40 -> 15.83840329
A40: 35 | B40: М.-Кангаласская | C40: 16360 | D40: 12761 | E40: 4290 | F40: 1610 | G40: 3599 | I40: =т.6!D39/т.2!D41 -> 13.0650978
A41: 36 | B41: ГБ г.Нерюнгри | C41: 8449 | D41: 8148 | E41: 3294 | F41: 1618 | G41: 55 | H41: 246 | I41: =т.6!D40/т.2!D42 -> 17.43342407
A42: 37 | B42: Бердигестях ДБ | C42: 1449 | D42: 1175 | E42: 1036 | F42: 139 | G42: 211 | H42: 63 | I42: =т.6!D41/т.2!D43 -> 9.064182195
A43: 38 | B43: Б-ка ГО "п. Жатай" | C43: 2746 | D43: 2497 | E43: 1103 | F43: 232 | G43: 32 | H43: 217 | I43: =т.6!D42/т.2!D44 -> 18.30844865
A44: 39 | B44: Алданский БИЦ | C44: 3565 | D44: 3006 | E44: 1773 | F44: 657 | G44: 559 | I44: =т.6!D43/т.2!D45 -> 20.38120617
A45: 40 | B45: Томмотский БИЦ | C45: 4804 | D45: 4244 | E45: 1850 | F45: 651 | G45: 560 | I45: =т.6!D44/т.2!D46 -> 24.66382182
B46: Итого по МБ | C46: =SUM(C6:C45) -> 384269 | D46: 293800 | E46: 102414 | F46: 63546 | G46: 67723 | H46: 22746 | I46: =т.6!D45/т.2!D47 -> 18.10521015
B47: НБ РС(Я) | C47: 36464 | D47: 16001 | F47: 9715 | G47: 1394 | H47: 19069 | I47: =т.6!D46/т.2!D48 -> 45.80194164
B48: Филиал НБ "ДТК" | C48: 8069 | D48: 5504 | E48: 4635 | F48: 869 | G48: 2565 | I48: =т.6!D47/т.2!D49 -> 23.92241913
B49: РБС | C49: 2270 | D49: 549 | E49: 52 | F49: 53 | G49: 1454 | H49: 267 | I49: =т.6!D48/т.2!D50 -> 40.02026432
B50: ВСЕГО | C50: =SUM(C46:C49) -> 431072 | D50: 315854 | E50: 107101 | F50: 74183 | G50: 73136 | H50: 42082 | I50: =т.6!D49/т.2!D51 -> 20.67234476

Sheet т.2.2
G1: Таблица 2.2
A2: Количество пользователей в сельской местности
A4: № | B4: ЦБС | C4: всего из общего числа в с/местн. | D4: из них пользователей, обслуженных в стенах библиотеки | G4: из них во внестац. | H4: из них удал. польз
D5: всего | E5: до 14 лет | F5: от 15-30
A8: 1 | B8: Абыйская | C8: 699 | D8: 370 | E8: 116 | F8: 70 | G8: 329
A9: 2 | B9: Аллаиховская | C9: 276 | D9: 247 | E9: 89 | F9: 57 | G9: 29
A10: 3 | B10: Амгинская | C10: 9468 | D10: 6850 | E10: 2431 | F10: 1359 | G10: 1878 | H10: 740
A11: 4 | B11: Анабарская | C11: 1141 | D11: 988 | E11: 331 | F11: 123 | G11: 153
A12: 5 | B12: Булунская | C12: 2262 | D12: 1822 | E12: 606 | F12: 616 | G12: 440
A13: 6 | B13: Верхневилюйская | C13: 12911 | D13: 10593 | E13: 3495 | F13: 2547 | G13: 2309 | H13: 9
A14: 7 | B14: Верхнеколымская | C14: 1107 | D14: 642 | E14: 222 | F14: 126 | G14: 465
A15: 8 | B15: Верхоянская | C15: 2802 | D15: 2517 | E15: 748 | F15: 485 | G15: 285
A16: 9 | B16: Вилюйская | C16: 4419 | D16: 4300 | E16: 1249 | F16: 883 | G16: 119
A17: 10 | B17: Горная | C17: 6298 | D17: 4633 | E17: 1228 | F17: 1197 | G17: 942 | H17: 723
A18: 11 | B18: Жиганская | C18: 3410 | D18: 2876 | E18: 625 | F18: 365 | G18: 386 | H18: 148
A19: 12 | B19: Кобяйская | C19: 4183 | D19: 2569 | E19: 818 | F19: 521 | G19: 1614
A20: 13 | B20: Ленская | C20: 2258 | D20: 1957 | E20: 752 | F20: 268 | G20: 301
A21: 14 | B21: Момская | C21: 2057 | D21: 1817 | E21: 481 | F21: 337 | G21: 240
A22: 15 | B22: Намская | C22: 13156 | D22: 10868 | E22: 3833 | F22: 2652 | G22: 2171 | H22: 117
A23: 16 | B23: Нижнеколымская | C23: 528 | D23: 528 | E23: 171 | F23: 156
A24: 17 | B24: Нюрбинская | C24: 9321 | D24: 5974 | E24: 1975 | F24: 1003 | G24: 3347
A25: 18 | B25: Оймяконская | C25: 1970 | D25: 1475 | E25: 462 | F25: 369 | G25: 495
A26: 19 | B26: Олекминская | C26: 6449 | D26: 5493 | E26: 1688 | F26: 996 | G26: 956
A27: 20 | B27: Оленекская | C27: 3158 | D27: 2293 | E27: 892 | F27: 235 | G27: 808 | H27: 57
A28: 21 | B28: Среднеколымская | C28: 2758 | D28: 1463 | E28: 400 | F28: 465 | G28: 1295
A29: 22 | B29: Сунтарская* | C29: 15679 | D29: 12439 | E29: 3789 | F29: 3301 | G29: 2997 | H29: 243
A30: 23 | B30: Таттинская | C30: 7324 | D30: 4609 | E30: 2004 | F30: 1070 | G30: 2499 | H30: 216
A31: 24 | B31: Томпонская | C31: 3240 | D31: 2854 | E31: 937 | F31: 753 | G31: 386
A32: 25 | B32: Усть-Алданская | C32: 20005 | D32: 11825 | E32: 4762 | F32: 2576 | G32: 8180
A33: 26 | B33: Усть-Майская | C33: 1253 | D33: 1183 | E33: 374 | F33: 194 | G33: 70
A34: 27 | B34: Усть-Янская | C34: 1830 | D34: 1621 | E34: 497 | F34: 534 | G34: 209
A35: 28 | B35: Хангаласская | C35: 8481 | D35: 5777 | E35: 1442 | F35: 1079 | G35: 1828 | H35: 876
A36: 29 | B36: Чурапчинская | C36: 9977 | D36: 8147 | E36: 2307 | F36: 1589 | G36: 1731 | H36: 99
A37: 30 | B37: Мирнинская | C37: 448 | D37: 413 | E37: 187 | F37: 97 | G37: 35
A38: 31 | B38: Нерюнгринская | C38: 935 | D38: 796 | E38: 287 | F38: 177 | G38: 139
A39: 32 | B39: Эвено-Бытантайская | C39: 1425 | D39: 1080 | E39: 433 | F39: 170 | G39: 345
A40: 33 | B40: Якутская | C40: 6207 | D40: 6042 | E40: 2649 | F40: 1058 | G40: 165
A41: 34 | B41: Алданская | C41: 848 | D41: 486 | E41: 249 | F41: 93 | G41: 362
A42: 35 | B42: М.-Кангаласская | C42: 15330 | D42: 12071 | E42: 4031 | F42: 1581 | G42: 3259
A43: 36 | B43: Бердигестях ДБ | C43: 1449 | D43: 1175 | E43: 1036 | F43: 139 | G43: 211 | H43: 63
A44: 37 | B44: Алданский БИЦ | C44: 59 | D44: 59 | E44: 14 | F44: 12
A45: 38 | B45: Томмотский БИЦ | C45: 140 | D45: 123 | E45: 31 | F45: 32 | G45: 17
B46: Итого по РС(Я) | C46: =SUM(C8:C45) -> 185261 | D46: 140975 | E46: 47641 | F46: 29285 | G46: 40995 | H46: 3291

Sheet т.3
G1: Таблица 3
A2: Число посещений. Посещаемость
A4: № | B4: ЦБС | C4: Число посещений | F4: Посещаемость
C5: 2020 | D5: 2021 | E5: "+ -" | F5: 2020 | G5: 2021 | H5: "+ -"
A6: 1 | B6: Абыйская | C6: 18620 | D6: 13874 | E6: =D6-C6 -> -4746 | F6: 10.3 | G6: =т.3!D6/т.2!D7 -> 6.252365931 | H6: =G6 - F6 -> -4.047634069
A7: 2 | B7: Аллаиховская | C7: 3714 | D7: 12679 | E7: =D7-C7 -> 8965 | F7: 4.9 | G7: =т.3!D7/т.2!D8 -> 9.649162861 | H7: 4.749162861
A8: 3 | B8: Амгинская | C8: 56445 | D8: 61810 | E8: 5365 | F8: 7.6 | G8: =т.3!D8/т.2!D9 -> 6.528305872 | H8: -1.071694128
A9: 4 | B9: Анабарская | C9: 5681 | D9: 6266 | E9: 585 | F9: 3 | G9: =т.3!D9/т.2!D10 -> 5.49167397 | H9: 2.49167397
A10: 5 | B10: Булунская | C10: 40611 | D10: 79157 | E10: 38546 | F10: 7 | G10: =т.3!D10/т.2!D11 -> 11.44383403 | H10: 4.443834032
A11: 6 | B11: Верхневилюйская | C11: 64181 | D11: 126517 | E11: 62336 | F11: 7.8 | G11: =т.3!D11/т.2!D12 -> 9.799163504 | H11: 1.999163504
A12: 7 | B12: Верхнеколымская | C12: 27119 | D12: 35374 | E12: 8255 | F12: 7.6 | G12: =т.3!D12/т.2!D13 -> 11.39993555 | H12: 3.799935546
A13: 8 | B13: Верхоянская | C13: 32114 | D13: 67801 | E13: 35687 | F13: 8.7 | G13: =т.3!D13/т.2!D14 -> 11.54059574 | H13: 2.840595745
A14: 9 | B14: Вилюйская | C14: 74032 | D14: 71073 | E14: -2959 | F14: 7.7 | G14: =т.3!D14/т.2!D15 -> 8.128202196 | H14: 0.4282021958
A15: 10 | B15: Горная | C15: 36624 | D15: 59767 | E15: 23143 | F15: 6.4 | G15: =т.3!D15/т.2!D16 -> 9.489838044 | H15: 3.089838044
A16: 11 | B16: Жиганская | C16: 21386 | D16: 25548 | E16: 4162 | F16: 5.6 | G16: =т.3!D16/т.2!D17 -> 7.492082111 | H16: 1.892082111
A17: 12 | B17: Кобяйская | C17: 77927 | D17: 92126 | E17: 14199 | F17: 9.2 | G17: =т.3!D17/т.2!D18 -> 10.28077224 | H17: 1.080772235
A18: 13 | B18: Ленская | C18: 70112 | D18: 122242 | E18: 52130 | F18: 7.3 | G18: =т.3!D18/т.2!D19 -> 8.421770582 | H18: 1.121770582
A19: 14 | B19: Момская | C19: 17252 | D19: 14417 | E19: -2835 | F19: 8.3 | G19: =т.3!D19/т.2!D20 -> 7.008750608 | H19: -1.291249392
A20: 15 | B20: Намская | C20: 51697 | D20: 103118 | E20: 51421 | F20: 7.5 | G20: =т.3!D20/т.2!D21 -> 7.838096686 | H20: 0.3380966859
A21: 16 | B21: Нижнеколымская | C21: 13730 | D21: 16872 | E21: 3142 | F21: 5.8 | G21: =т.3!D21/т.2!D22 -> 7.393514461 | H21: 1.593514461
A22: 17 | B22: Нюрбинская | C22: 70382 | D22: 76024 | E22: 5642 | F22: 3.7 | G22: =т.3!D22/т.2!D23 -> 3.948888427 | H22: 0.2488884272
A23: 18 | B23: Оймяконская | C23: 28738 | D23: 57374 | E23: 28636 | F23: 10.1 | G23: =т.3!D23/т.2!D24 -> 9.647553388 | H23: -0.4524466117
A24: 19 | B24: Олекминская | C24: 64415 | D24: 91444 | E24: 27029 | F24: 8 | G24: =т.3!D24/т.2!D25 -> 8.297250703 | H24: 0.2972507032
A25: 20 | B25: Оленекская | C25: 10392 | D25: 23533 | E25: 13141 | F25: 3.3 | G25: =т.3!D25/т.2!D26 -> 7.451868271 | H25: 4.151868271
A26: 21 | B26: Среднеколымская | C26: 16029 | D26: 39062 | E26: 23033 | F26: 3.8 | G26: =т.3!D26/т.2!D27 -> 8.508385973 | H26: 4.708385973
A27: 22 | B27: Сунтарская* | C27: 86499 | D27: 107896 | E27: 21397 | F27: 5.9 | G27: =т.3!D27/т.2!D28 -> 6.881561324 | H27: 0.9815613241
A28: 23 | B28: Таттинская | C28: 63284 | D28: 57973 | E28: -5311 | F28: 6.7 | G28: =т.3!D28/т.2!D29 -> 7.915483342 | H28: 1.215483342
A29: 24 | B29: Томпонская | C29: 44870 | D29: 80804 | E29: 35934 | F29: 7.2 | G29: =т.3!D29/т.2!D30 -> 12.18395657 | H29: 4.983956574
A30: 25 | B30: Усть-Алданская | C30: 202226 | D30: 210112 | E30: 7886 | F30: 10.3 | G30: =т.3!D30/т.2!D31 -> 10.50297426 | H30: 0.2029742564
A31: 26 | B31: Усть-Майская | C31: 63592 | D31: 73041 | E31: 9449 | F31: 12.8 | G31: =т.3!D31/т.2!D32 -> 14.53841561 | H31: 1.738415605
A32: 27 | B32: Усть-Янская | C32: 29469 | D32: 29669 | E32: 200 | F32: 7.3 | G32: =т.3!D32/т.2!D33 -> 7.836502905 | H32: 0.5365029054
A33: 28 | B33: Хангаласская | C33: 86721 | D33: 115801 | E33: 29080 | F33: 3.9 | G33: =т.3!D33/т.2!D34 -> 3.666096812 | H33: -0.233903188
A34: 29 | B34: Чурапчинская | C34: 76758 | D34: 67067 | E34: -9691 | F34: 8 | G34: =т.3!D34/т.2!D35 -> 6.72216097 | H34: -1.27783903
A35: 30 | B35: Мирнинская | C35: 97387 | D35: 117680 | E35: 20293 | F35: 6.8 | G35: =т.3!D35/т.2!D36 -> 6.91340618 | H35: 0.1134061802
A36: 31 | B36: Нерюнгринская | C36: 76055 | D36: 92498 | E36: 16443 | F36: 5.8 | G36: =т.3!D36/т.2!D37 -> 7.036744009 | H36: 1.236744009
A37: 32 | B37: Эвено-Бытантай | C37: 6362 | D37: 17785 | E37: 11423 | F37: 6.6 | G37: =т.3!D37/т.2!D38 -> 12.48070175 | H37: 5.880701754
A38: 33 | B38: Якутская | C38: 394540 | D38: 422356 | E38: 27816 | F38: 11.5 | G38: =т.3!D38/т.2!D39 -> 6.90586831 | H38: -4.59413169
A39: 34 | B39: Алданская | C39: 106199 | D39: 83037 | E39: =D39-C39 -> -23162 | F39: 12.3 | G39: =т.3!D39/т.2!D40 -> 10.658067 | H39: =G39 - F39 -> -1.641933
A40: 35 | B40: М.-Кангаласская | C40: 104471 | D40: 77475 | E40: =D40-C40 -> -26996 | F40: 7 | G40: =т.3!D40/т.2!D41 -> 4.735635697 | H40: =G40 - F40 -> -2.264364303
A41: 36 | B41: ГБ г.Нерюнгри | C41: 50258 | D41: 60458 | E41: 10200 | F41: 7.4 | G41: =т.3!D41/т.2!D42 -> 7.155639721 | H41: -0.2443602793
A42: 37 | B42: Бердигестях ДБ | C42: 12547 | D42: 5687 | E42: -6860 | F42: 10.2 | G42: =т.3!D42/т.2!D43 -> 3.924775707 | H42: -6.275224293
A43: 38 | B43: Б-ка ГО "п. Жатай" | C43: 12462 | D43: 18135 | E43: 5673 | F43: 7.9 | G43: =т.3!D43/т.2!D44 -> 6.604151493 | H43: -1.295848507
A44: 39 | B44: Алданский БИЦ | C44: 25411 | D44: 37951 | E44: =D44-C44 -> 12540 | F44: 8.2 | G44: =т.3!D44/т.2!D45 -> 10.6454418 | H44: =G44 - F44 -> 2.445441795
A45: 40 | B45: Томмотский БИЦ | C45: 29186 | D45: 56674 | E45: 27488 | F45: 7.7 | G45: =т.3!D45/т.2!D46 -> 11.79725229 | H45: 4.09725229
B46: Итого по МБ | C46: =SUM(C6:C45) -> 2369498 | D46: =SUM(D6:D45) -> 2928177 | E46: 558679 | F46: 7.6 | G46: =т.3!D46/т.2!D47 -> 7.620122883 | H46: 0.02012288267
B47: НБ РС(Я) | C47: 84118 | D47: 381450 | E47: 297332 | F47: 2.9 | G47: =т.3!D47/т.2!D48 -> 10.46100263 | H47: 7.561002633
B48: Филиал НБ "ДТК" | C48: 21431 | D48: 64194 | E48: 42763 | F48: 4 | G48: =т.3!D48/т.2!D49 -> 7.955632668 | H48: 3.955632668
B49: РБС | C49: 17456 | D49: 12317 | E49: -5139 | F49: 7.7 | G49: =т.3!D49/т.2!D50 -> 5.425991189 | H49: -2.274008811
B50: Итого по РС(Я) | C50: =SUM(C46:C49) -> 2492503 | D50: =SUM(D46:D49) -> 3386138 | E50: =SUM(E46:E49) -> 893635 | F50: 7.1 | G50: =т.3!D50/т.2!D51 -> 7.855156447 | H50: =G50-F50 -> 0.7551564472

Sheet т.4
I1: Таблица 4
A2: Движение библиотечного фонда
C4: Сост. на | D4: Поступило | G4: Выбыло | I4: Сост. на
A5: № | B5: ЦБС | C5: 2021-01-01 | D5: всего (экз) | E5: из них вновь приобрет. (экз). | F5: фонд реорг. б-к | G5: (экз.) | H5: из них без учета фонда р/б | I5: 2022-01-01
A6: 1 | B6: Абыйская | C6: 81808 | D6: 1114 | E6: 1104 | G6: 4758 | H6: 4758 | I6: =C6+D6+F6-G6 -> 78164
A7: 2 | B7: Аллаиховская | C7: 77061 | D7: 1393 | E7: 1393 | I7: =C7+D7+F7-G7 -> 78454
A8: 3 | B8: Амгинская | C8: 190955 | D8: 5585 | E8: 5583 | G8: 8970 | H8: 8970 | I8: 187570
A9: 4 | B9: Анабарская | C9: 24368 | D9: 993 | E9: 993 | G9: 417 | H9: 417 | I9: 24944
A10: 5 | B10: Булунская | C10: 146533 | D10: 2058 | E10: 2058 | G10: 918 | H10: 918 | I10: 147673
A11: 6 | B11: Верхневилюйская | C11: 233896 | D11: 6180 | E11: 6180 | G11: 9012 | H11: 9012 | I11: 231064
A12: 7 | B12: Верхнеколымская | C12: 110947 | D12: 2955 | E12: 2955 | G12: 4338 | H12: 4338 | I12: 109564
A13: 8 | B13: Верхоянская | C13: 216167 | D13: 7318 | E13: 7318 | G13: 7060 | H13: 7060 | I13: 216425
A14: 9 | B14: Вилюйская | C14: 265220 | D14: 6813 | E14: 6813 | G14: 2359 | H14: 2359 | I14: 269674
A15: 10 | B15: Горная | C15: 101221 | D15: 2418 | E15: 2418 | G15: 1558 | H15: 1558 | I15: 102081
A16: 11 | B16: Жиганская | C16: 54842 | D16: 2600 | E16: 2600 | G16: 1098 | H16: 1098 | I16: 56344
A17: 12 | B17: Кобяйская | C17: 196431 | D17: 4674 | E17: 4674 | G17: 3904 | H17: 3904 | I17: 197201
A18: 13 | B18: Ленская | C18: 203340 | D18: 11634 | E18: 11634 | G18: 7302 | H18: 7302 | I18: 207672
A19: 14 | B19: Момская | C19: 86252 | D19: 1083 | E19: 1083 | G19: 1034 | H19: 1034 | I19: 86301
A20: 15 | B20: Намская | C20: 209457 | D20: 6636 | E20: 6636 | G20: 14410 | H20: 14410 | I20: 201683
A21: 16 | B21: Нижнеколымская | C21: 99891 | D21: 1357 | E21: 1357 | G21: 1268 | H21: 1268 | I21: 99980
A22: 17 | B22: Нюрбинская | C22: 326880 | D22: 3633 | E22: 3633 | G22: 405 | H22: 405 | I22: 330108
A23: 18 | B23: Оймяконская | C23: 115881 | D23: 1352 | E23: 1352 | I23: 117233
A24: 19 | B24: Олекминская | C24: 280436 | D24: 4373 | E24: 4283 | G24: 18088 | H24: 18088 | I24: 266721
A25: 20 | B25: Оленекская | C25: 54746 | D25: 1382 | E25: 1382 | G25: 414 | H25: 414 | I25: 55714
A26: 21 | B26: Среднеколымская | C26: 122548 | D26: 4885 | E26: 4885 | G26: 1610 | H26: 1610 | I26: 125823
A27: 22 | B27: Сунтарская* | C27: 231019 | D27: 15773 | E27: 14828 | F27: 25895 | G27: 40599 | H27: 14704 | I27: 232088
A28: 23 | B28: Таттинская | C28: 210926 | D28: 3776 | E28: 3776 | G28: 5335 | H28: 5335 | I28: 209367
A29: 24 | B29: Томпонская | C29: 174637 | D29: 2921 | E29: 2921 | G29: 2921 | H29: 2921 | I29: 174637
A30: 25 | B30: Усть-Алданская | C30: 414605 | D30: 11461 | E30: 11461 | G30: 18992 | H30: 18992 | I30: 407074
A31: 26 | B31: Усть-Майская | C31: 127325 | D31: 4094 | E31: 4094 | G31: 3853 | H31: 3853 | I31: 127566
A32: 27 | B32: Усть-Янская | C32: 171004 | D32: 375 | E32: 375 | I32: 171379
A33: 28 | B33: Хангаласская | C33: 331213 | D33: 9911 | E33: 9911 | G33: 24616 | H33: 24616 | I33: 316508
A34: 29 | B34: Чурапчинская | C34: 272975 | D34: 7141 | E34: 7141 | G34: 4961 | H34: 4961 | I34: 275155
A35: 30 | B35: Мирнинская | C35: 240813 | D35: 6085 | E35: 6085 | G35: 16963 | H35: 16963 | I35: 229935
A36: 31 | B36: Нерюнгринская | C36: 140166 | D36: 5821 | E36: 5786 | G36: 3235 | H36: 3235 | I36: 142752
A37: 32 | B37: Эвено-Бытантайская | C37: 42323 | D37: 157 | E37: 157 | I37: 42480
A38: 33 | B38: Якутская | C38: 459344 | D38: 27277 | E38: 20847 | G38: 24659 | H38: 24659 | I38: 461962
A39: 34 | B39: Алданская | C39: 118762 | D39: 9922 | E39: 9922 | G39: 5381 | H39: 5381 | I39: 123303
A40: 35 | B40: Мегино-Кангаласская | C40: 455521 | D40: 6925 | E40: 6869 | G40: 1882 | H40: 1882 | I40: 460564
A41: 36 | B41: ГБ г.Нерюнгри | C41: 112017 | D41: 2786 | E41: 2786 | G41: 3776 | H41: 3776 | I41: 111027
A42: 37 | B42: Бердигестях ДБ | C42: 15762 | D42: 944 | E42: 944 | I42: 16706
A43: 38 | B43: Б-ка ГО "п. Жатай" | C43: 20776 | D43: 200 | E43: 200 | G43: 96 | H43: 96 | I43: 20880
A44: 39 | B44: Алданский БИЦ | C44: 34542 | D44: 781 | E44: 781 | G44: 739 | H44: 739 | I44: 34584
A45: 40 | B45: Томмотский БИЦ | C45: 41353 | D45: 1801 | E45: 1801 | G45: 2712 | H45: 2712 | I45: 40442
B46: Итого по МБ | C46: =SUM(C6:C45) -> 6813963 | D46: 198587 | E46: 191019 | F46: 25895 | G46: 249643 | H46: 223748 | I46: 6788802
B47: НБ РС(Я) | C47: 1655678 | D47: 26000 | E47: 26000 | I47: 1681678
B48: Филиал НБ "ДТК" | C48: 171027 | D48: 1417 | E48: 1417 | I48: 172444
B49: РБС | C49: 145578 | D49: 4000 | E49: 4000 | G49: 1015 | H49: 1015 | I49: 148563
B50: Итого по РС(Я) | C50: =SUM(C46:C49) -> 8786246 | D50: 230004 | E50: 222436 | F50: 25895 | G50: 250658 | H50: 224763 | I50: 8791487

Sheet т.4.1
G1: Таблица 4.1
A2: Библиотечный фонд
A4: № | B4: ЦБС | C4: 2020 | D4: 2021 | E4: "+ -" | F4: в городе | G4: в сельск. местн.
A5: 1 | B5: Абыйская | C5: 81808 | D5: 78164 | E5: =D5-C5 -> -3644 | F5: =D5-G5 -> 34720 | G5: 43444
A6: 2 | B6: Аллаиховская | C6: 77061 | D6: 78454 | E6: =D6-C6 -> 1393 | F6: =D6-G6 -> 48277 | G6: 30177
A7: 3 | B7: Амгинская | C7: 190955 | D7: 187570 | E7: -3385 | F7: =D7-G7 -> 0 | G7: 187570
A8: 4 | B8: Анабарская | C8: 24368 | D8: 24944 | E8: 576 | F8: =D8-G8 -> 0 | G8: 24944
A9: 5 | B9: Булунская | C9: 146533 | D9: 147673 | E9: 1140 | F9: 68747 | G9: 78926
A10: 6 | B10: Верхневилюйская | C10: 233896 | D10: 231064 | E10: -2832 | F10: 0 | G10: 231064
A11: 7 | B11: Верхнеколымская | C11: 110947 | D11: 109564 | E11: -1383 | F11: 63000 | G11: 46564
A12: 8 | B12: Верхоянская | C12: 216167 | D12: 216425 | E12: 258 | F12: 91270 | G12: 125155
A13: 9 | B13: Вилюйская | C13: 265220 | D13: 269674 | E13: 4454 | F13: 88354 | G13: 181320
A14: 10 | B14: Горная | C14: 101221 | D14: 102081 | E14: 860 | F14: 0 | G14: 102081
A15: 11 | B15: Жиганская | C15: 54842 | D15: 56344 | E15: 1502 | F15: 0 | G15: 56344
A16: 12 | B16: Кобяйская | C16: 196431 | D16: 197201 | E16: 770 | F16: 48291 | G16: 148910
A17: 13 | B17: Ленская | C17: 203340 | D17: 207672 | E17: 4332 | F17: 119633 | G17: 88039
A18: 14 | B18: Момская | C18: 86252 | D18: 86301 | E18: 49 | F18: 0 | G18: 86301
A19: 15 | B19: Намская | C19: 209457 | D19: 201683 | E19: -7774 | F19: 0 | G19: 201683
A20: 16 | B20: Нижнеколымская | C20: 99891 | D20: 99980 | E20: 89 | F20: 69403 | G20: 30577
A21: 17 | B21: Нюрбинская | C21: 326880 | D21: 330108 | E21: 3228 | F21: 87417 | G21: 242691
A22: 18 | B22: Оймяконская | C22: 115881 | D22: 117233 | E22: 1352 | F22: 43043 | G22: 74190
A23: 19 | B23: Олекминская | C23: 280436 | D23: 266721 | E23: -13715 | F23: 65264 | G23: 201457
A24: 20 | B24: Оленекская | C24: 54746 | D24: 55714 | E24: 968 | F24: 0 | G24: 55714
A25: 21 | B25: Среднеколымская | C25: 122548 | D25: 125823 | E25: 3275 | F25: 51851 | G25: 73972
A26: 22 | B26: Сунтарская* | C26: 231019 | D26: 232088 | E26: 1069 | F26: 0 | G26: 232088
A27: 23 | B27: Таттинская | C27: 210926 | D27: 209367 | E27: -1559 | F27: 0 | G27: 209367
A28: 24 | B28: Томпонская | C28: 174637 | D28: 174637 | E28: 0 | F28: 73680 | G28: 100957
A29: 25 | B29: Усть-Алданская | C29: 414605 | D29: 407074 | E29: -7531 | F29: 0 | G29: 407074
A30: 26 | B30: Усть-Майская | C30: 127325 | D30: 127566 | E30: 241 | F30: 83094 | G30: 44472
A31: 27 | B31: Усть-Янская | C31: 171004 | D31: 171379 | E31: 375 | F31: 84788 | G31: 86591
A32: 28 | B32: Хангаласская | C32: 331213 | D32: 316508 | E32: -14705 | F32: 111882 | G32: 204626
A33: 29 | B33: Чурапчинская | C33: 272975 | D33: 275155 | E33: 2180 | F33: 0 | G33: 275155
A34: 30 | B34: Мирнинская | C34: 240813 | D34: 229935 | E34: -10878 | F34: 195290 | G34: 34645
A35: 31 | B35: Нерюнгринская | C35: 140166 | D35: 142752 | E35: 2586 | F35: 119628 | G35: 23124
A36: 32 | B36: Эвено-Бытантайская | C36: 42323 | D36: 42480 | E36: 157 | F36: 0 | G36: 42480
A37: 33 | B37: Якутская | C37: 459344 | D37: 461962 | E37: =D37-C37 -> 2618 | F37: =D37-G37 -> 400183 | G37: 61779
A38: 34 | B38: Алданская | C38: 118762 | D38: 123303 | E38: =D38-C38 -> 4541 | F38: 86988 | G38: 36315
A39: 35 | B39: Мегино-Кангаласская | C39: 455521 | D39: 460564 | E39: =D39-C39 -> 5043 | F39: 13883 | G39: 446681
A40: 36 | B40: ГБ г.Нерюнгри | C40: 112017 | D40: 111027 | E40: -990 | F40: 111027 | G40: 0
A41: 37 | B41: Бердигестях ДБ | C41: 15762 | D41: 16706 | F41: 0 | G41: 16706
A42: 38 | B42: Б-ка ГО "п. Жатай" | C42: 20776 | D42: 20880 | E42: =D42-C42 -> 104 | F42: 20880 | G42: 0
A43: 39 | B43: Алданский БИЦ | C43: 34542 | D43: 34584 | F43: =D43-G43 -> 27869 | G43: 6715
A44: 40 | B44: Томмотский БИЦ | C44: 41353 | D44: 40442 | F44: 35046 | G44: 5396
B45: Итого по МБ | C45: =SUM(C5:C44) -> 6813963 | D45: =SUM(D5:D44) -> 6788802 | E45: -25161 | F45: =SUM(F5:F44) -> 2243508 | G45: =SUM(G5:G44) -> 4545294
B46: НБ РС(Я) | C46: 1655678 | D46: 1681678 | E46: 26000 | F46: 1681678 | G46: 0
B47: Филиал НБ "ДТК" | C47: 171027 | D47: 172444 | E47: 1417 | F47: 172444 | G47: 0
B48: РБС | C48: 145578 | D48: 148563 | E48: 2985 | F48: 148563 | G48: 0
B49: Итого по РС(Я) | C49: =SUM(C45:C48) -> 8786246 | D49: =SUM(D45:D48) -> 8791487 | E49: 5241 | F49: =SUM(F45:F48) -> 4246193 | G49: =SUM(G45:G48) -> 4545294

Sheet т.4.2
J1: Таблица 4.2
A2: Новые поступления в библиотечный фонд (экз.)
E4: в том числе | I4: спец. | J4: на яз. | K4: на
A5: № | B5: ЦБС | C5: 2020 | D5: 2021 | E5: печ.изд. | F5: из них | G5: эл.док. | H5: док. на | J5: нар.РФ | K5: иностр. | L5: "+ -"
E6: неопуб. | F6: книг | G6: съемн | H6: др.вид. | I6: док. | J6: кр.рус.яз. | K6: яз.
A7: 1 | B7: Абыйская | C7: 1876 | D7: 1104 | E7: 1102 | F7: 603 | G7: 2 | J7: 286 | L7: =D7-C7 -> -772
A8: 2 | B8: Аллаиховская | C8: 774 | D8: 1393 | E8: 1393 | F8: 1195 | J8: 373 | L8: 619
A9: 3 | B9: Амгинская | C9: 7832 | D9: 5583 | E9: 5520 | F9: 2711 | G9: 63 | J9: 2110 | K9: 1 | L9: -2249
A10: 4 | B10: Анабарская | C10: 1004 | D10: 993 | E10: 993 | F10: 904 | J10: 175 | L10: -11
A11: 5 | B11: Булунская | C11: 2128 | D11: 2058 | E11: 2058 | F11: 1860 | J11: 524 | L11: -70
A12: 6 | B12: Верхневилюйская | C12: 6162 | D12: 6180 | E12: 6175 | F12: 4181 | G12: 5 | J12: 3290 | K12: 1 | L12: 18
A13: 7 | B13: Верхнеколымская | C13: 4474 | D13: 2955 | E13: 2955 | F13: 606 | J13: 130 | L13: -1519
A14: 8 | B14: Верхоянская | C14: 8343 | D14: 7318 | E14: 7318 | F14: 5349 | J14: 1833 | L14: -1025
A15: 9 | B15: Вилюйская | C15: 5112 | D15: 6813 | E15: 6646 | F15: 5905 | G15: 167 | J15: 2488 | L15: 1701
A16: 10 | B16: Горная | C16: 3028 | D16: 2418 | E16: 2418 | F16: 1678 | J16: 1025 | L16: -610
A17: 11 | B17: Жиганская | C17: 342 | D17: 2600 | E17: 2600 | F17: 1657 | I17: 131 | J17: 1 | K17: 16 | L17: 2258
A18: 12 | B18: Кобяйская | C18: 5068 | D18: 4674 | E18: 4674 | F18: 1472 | J18: 2200 | L18: -394
A19: 13 | B19: Ленская | C19: 11304 | D19: 11634 | E19: 11634 | F19: 6801 | I19: 12 | J19: 820 | L19: 330
A20: 14 | B20: Момская | C20: 916 | D20: 1083 | E20: 1081 | F20: 473 | G20: 2 | J20: 399 | L20: 167
A21: 15 | B21: Намская | C21: 10261 | D21: 6636 | E21: 6634 | F21: 1311 | G21: 2 | J21: 675 | L21: -3625
A22: 16 | B22: Нижнеколымская | C22: 1514 | D22: 1357 | E22: 1357 | F22: 27 | J22: 20 | L22: -157
A23: 17 | B23: Нюрбинская | C23: 4156 | D23: 3633 | E23: 3632 | F23: 1956 | G23: 1 | J23: 1798 | L23: -523
A24: 18 | B24: Оймяконская | C24: 1214 | D24: 1352 | E24: 1340 | G24: 12 | J24: 479 | L24: 138
A25: 19 | B25: Олекминская | C25: 4968 | D25: 4283 | E25: 4283 | F25: 3470 | I25: 74 | J25: 709 | L25: -685
A26: 20 | B26: Оленекская | C26: 1130 | D26: 1382 | E26: 1382 | F26: 1382 | J26: 263 | L26: 252
A27: 21 | B27: Среднеколымская | C27: 3990 | D27: 4885 | E27: 4885 | F27: 2859 | J27: 2237 | L27: 895
A28: 22 | B28: Сунтарская* | C28: 8194 | D28: 14828 | E28: 14824 | F28: 7055 | G28: 4 | J28: 4238 | K28: 52 | L28: 6634
A29: 23 | B29: Таттинская | C29: 5803 | D29: 3776 | E29: 3758 | F29: 2680 | G29: 18 | J29: 1767 | L29: -2027
A30: 24 | B30: Томпонская | C30: 2513 | D30: 2921 | E30: 2921 | F30: 1736 | J30: 565 | K30: 2 | L30: 408
A31: 25 | B31: Усть-Алданская | C31: 18557 | D31: 11461 | E31: 11461 | F31: 5104 | J31: 3871 | L31: -7096
A32: 26 | B32: Усть-Майская | C32: 3854 | D32: 4094 | E32: 4094 | F32: 1071 | J32: 128 | L32: 240
A33: 27 | B33: Усть-Янская | C33: 1316 | D33: 375 | E33: 375 | F33: 160 | J33: 45 | L33: -941
A34: 28 | B34: Хангаласская | C34: 7579 | D34: 9911 | E34: 9906 | F34: 5572 | G34: 5 | I34: 14 | J34: 2190 | K34: 11 | L34: 2332
A35: 29 | B35: Чурапчинская | C35: 8304 | D35: 7141 | E35: 7141 | F35: 3557 | J35: 3251 | K35: 1 | L35: -1163
A36: 30 | B36: Мирнинская | C36: 7532 | D36: 6085 | E36: 6085 | F36: 2009 | J36: 506 | K36: 3 | L36: -1447
A37: 31 | B37: Нерюнгринская | C37: 3862 | D37: 5786 | E37: 5775 | F37: 4539 | G37: 11 | J37: 39 | K37: 2 | L37: 1924
A38: 32 | B38: Эвено-Бытантайская | C38: 481 | D38: 157 | E38: 157 | F38: 117 | J38: 118 | L38: -324
A39: 33 | B39: Якутская | C39: 27214 | D39: 20847 | E39: 20841 | F39: 13580 | G39: 6 | J39: 1883 | K39: 13 | L39: =D39-C39 -> -6367
A40: 34 | B40: Алданская | C40: 6401 | D40: 9922 | E40: 9548 | F40: 7907 | G40: 346 | H40: 28 | I40: 11 | J40: 387 | L40: =D40-C40 -> 3521
A41: 35 | B41: Мег.-Кангаласская | C41: 5795 | D41: 6869 | E41: 6869 | F41: 5287 | J41: 2954 | L41: =D41-C41 -> 1074
A42: 36 | B42: ГБ г.Нерюнгри | C42: 1831 | D42: 2786 | E42: 2786 | F42: 1701 | I42: 40 | J42: 105 | K42: 1 | L42: 955
A43: 37 | B43: Бердигестях ДБ | C43: 318 | D43: 944 | E43: 944 | F43: 561 | J43: 184 | L43: 626
A44: 38 | B44: Б-ка ГО "п. Жатай" | C44: 251 | D44: 200 | E44: 200 | F44: 200 | J44: 17 | L44: =D44-C44 -> -51
A45: 39 | B45: Алданский БИЦ | C45: 1284 | D45: 781 | E45: 779 | F45: 329 | G45: 1 | H45: 1 | J45: 14 | L45: -503
A46: 40 | B46: Томмотский БИЦ | C46: 3113 | D46: 1801 | E46: 1800 | F46: 446 | G46: 1 | J46: 58 | L46: -1312
B47: Итого по МБ | C47: =SUM(C7:C46) -> 199798 | D47: 191019 | E47: 190344 | F47: 110011 | G47: 646 | H47: 29 | I47: 282 | J47: 44155 | K47: 103 | L47: -8779
B48: НБ РС(Я) | C48: 22167 | D48: 26000 | E48: 26000 | F48: 22657 | J48: 2921 | K48: 545 | L48: 3833
B49: Филиал НБ "ДТК" | C49: 3911 | D49: 1417 | E49: 1417 | F49: 560 | K49: 4 | L49: -2494
B50: РБС | C50: 6630 | D50: 4000 | E50: 1506 | F50: 910 | G50: 1351 | H50: 1143 | I50: 3536 | J50: 240 | L50: -2630
B51: ВСЕГО | C51: =SUM(C47:C50) -> 232506 | D51: =SUM(D47:D50) -> 222436 | E51: 219267 | F51: =SUM(F47:F50) -> 134138 | G51: 1997 | H51: =SUM(H47:H50) -> 1172 | I51: =SUM(I47:I50) -> 3818 | J51: 47316 | K51: =SUM(K44:K50) -> 652 | L51: -10070

Sheet т.5
F1: Таблица 5
A2: Относительные показатели библиотек республики
A4: № | B4: ЦБС | C4: Документообесп. жителей | D4: Документообесп. польз. | E4: Обращаемость библ. фонда | F4: Обновляемость библ.фонда
A5: 1 | B5: Абыйская | C5: =(т.4!I6/т.1!C9)/1000 -> 20.04205128 | D5: ='т.4.1'!D5/т.2!D7 -> 35.22487607 | E5: =т.6!D5/'т.4.1'!D5 -> 0.4923494192 | F5: ='[1]т.4.2'!D6/'т.4.1'!D5*100 -> 2.299012333
A6: 2 | B6: Аллаиховская | C6: =(т.4!I7/т.1!C10)/1000 -> 29.05703704 | D6: ='т.4.1'!D6/т.2!D8 -> 59.70624049 | E6: =т.6!D6/'т.4.1'!D6 -> 0.5606597497 | F6: ='т.4.2'!D8/'т.4.1'!D6*100 -> 1.77556275
A7: 3 | B7: Амгинская | C7: =(т.4!I8/т.1!C11)/1000 -> 11.16488095 | D7: ='т.4.1'!D7/т.2!D9 -> 19.81094212 | E7: =т.6!D7/'т.4.1'!D7 -> 0.7314975742 | F7: ='т.4.2'!D9/'т.4.1'!D7*100 -> 2.976488778
A8: 4 | B8: Анабарская | C8: =(т.4!I9/т.1!C12)/1000 -> 6.741621622 | D8: ='т.4.1'!D8/т.2!D10 -> 21.86152498 | E8: =т.6!D8/'т.4.1'!D8 -> 0.8459348942 | F8: ='т.4.2'!D10/'т.4.1'!D8*100 -> 3.980917255
A9: 5 | B9: Булунская | C9: =(т.4!I10/т.1!C13)/1000 -> 17.37329412 | D9: ='т.4.1'!D9/т.2!D11 -> 21.34928437 | E9: =т.6!D9/'т.4.1'!D9 -> 1.055555179 | F9: ='т.4.2'!D11/'т.4.1'!D9*100 -> 1.393619687
A10: 6 | B10: Верхневилюйская | C10: =(т.4!I11/т.1!C14)/1000 -> 10.89924528 | D10: ='т.4.1'!D10/т.2!D12 -> 17.89667725 | E10: =т.6!D10/'т.4.1'!D10 -> 1.26658415 | F10: ='т.4.2'!D12/'т.4.1'!D10*100 -> 2.674583665
A11: 7 | B11: Верхнеколымская | C11: =(т.4!I12/т.1!C15)/1000 -> 27.391 | D11: ='т.4.1'!D11/т.2!D13 -> 35.30905575 | E11: =т.6!D11/'т.4.1'!D11 -> 0.9768902194 | F11: ='т.4.2'!D13/'т.4.1'!D11*100 -> 2.697053777
A12: 8 | B12: Верхоянская | C12: =(т.4!I13/т.1!C16)/1000 -> 19.675 | D12: ='т.4.1'!D12/т.2!D14 -> 36.83829787 | E12: =т.6!D12/'т.4.1'!D12 -> 0.5512995264 | F12: ='т.4.2'!D14/'т.4.1'!D12*100 -> 3.381309923
A13: 9 | B13: Вилюйская | C13: =(т.4!I14/т.1!C17)/1000 -> 10.74398406 | D13: ='т.4.1'!D13/т.2!D15 -> 30.84103385 | E13: =т.6!D13/'т.4.1'!D13 -> 0.6976386303 | F13: ='т.4.2'!D15/'т.4.1'!D13*100 -> 2.526383708
A14: 10 | B14: Горная | C14: =(т.4!I15/т.1!C18)/1000 -> 8.299268293 | D14: ='т.4.1'!D14/т.2!D16 -> 16.20847888 | E14: =т.6!D14/'т.4.1'!D14 -> 1.454962236 | F14: ='т.4.2'!D16/'т.4.1'!D14*100 -> 2.368707203
A15: 11 | B15: Жиганская | C15: =(т.4!I16/т.1!C19)/1000 -> 13.4152381 | D15: ='т.4.1'!D15/т.2!D17 -> 16.52316716 | E15: =т.6!D15/'т.4.1'!D15 -> 0.9931492262 | F15: ='т.4.2'!D17/'т.4.1'!D15*100 -> 4.614510862
A16: 12 | B16: Кобяйская | C16: =(т.4!I17/т.1!C20)/1000 -> 16.43341667 | D16: ='т.4.1'!D16/т.2!D18 -> 22.00658409 | E16: =т.6!D16/'т.4.1'!D16 -> 0.757932262 | F16: ='т.4.2'!D18/'т.4.1'!D16*100 -> 2.370170537
A17: 13 | B17: Ленская | C17: =(т.4!I18/т.1!C21)/1000 -> 5.689643836 | D17: ='т.4.1'!D17/т.2!D19 -> 14.30740613 | E17: =т.6!D17/'т.4.1'!D17 -> 1.510492507 | F17: ='т.4.2'!D19/'т.4.1'!D17*100 -> 5.602103317
A18: 14 | B18: Момская | C18: =(т.4!I19/т.1!C22)/1000 -> 21.04902439 | D18: ='т.4.1'!D18/т.2!D20 -> 41.95478853 | E18: =т.6!D18/'т.4.1'!D18 -> 0.3526030985 | F18: ='т.4.2'!D20/'т.4.1'!D18*100 -> 1.25491014
A19: 15 | B19: Намская | C19: =(т.4!I20/т.1!C23)/1000 -> 8.035179283 | D19: ='т.4.1'!D19/т.2!D21 -> 15.33011554 | E19: =т.6!D19/'т.4.1'!D19 -> 1.12646579 | F19: ='т.4.2'!D21/'т.4.1'!D19*100 -> 3.290312024
A20: 16 | B20: Нижнеколымская | C20: =(т.4!I21/т.1!C24)/1000 -> 23.8047619 | D20: ='т.4.1'!D20/т.2!D22 -> 43.81244522 | E20: =т.6!D20/'т.4.1'!D20 -> 0.4783456691 | F20: ='т.4.2'!D22/'т.4.1'!D20*100 -> 1.357271454
A21: 17 | B21: Нюрбинская | C21: =(т.4!I22/т.1!C25)/1000 -> 13.92860759 | D21: ='т.4.1'!D21/т.2!D23 -> 17.14668606 | E21: =т.6!D21/'т.4.1'!D21 -> 0.5752299248 | F21: ='т.4.2'!D23/'т.4.1'!D21*100 -> 1.100548911
A22: 18 | B22: Оймяконская | C22: =(т.4!I23/т.1!C26)/1000 -> 14.83962025 | D22: ='т.4.1'!D22/т.2!D24 -> 19.71296452 | E22: =т.6!D22/'т.4.1'!D22 -> 0.870514275 | F22: ='т.4.2'!D24/'т.4.1'!D22*100 -> 1.153258895
A23: 19 | B23: Олекминская | C23: =(т.4!I24/т.1!C27)/1000 -> 10.93118852 | D23: ='т.4.1'!D23/т.2!D25 -> 24.20116142 | E23: =т.6!D23/'т.4.1'!D23 -> 0.7121673959 | F23: ='т.4.2'!D25/'т.4.1'!D23*100 -> 1.605797819
A24: 20 | B24: Оленекская | C24: =(т.4!I25/т.1!C28)/1000 -> 12.95674419 | D24: ='т.4.1'!D24/т.2!D26 -> 17.64217859 | E24: =т.6!D24/'т.4.1'!D24 -> 0.6861112108 | F24: ='т.4.2'!D26/'т.4.1'!D24*100 -> 2.480525541
A25: 21 | B25: Среднеколымская | C25: =(т.4!I26/т.1!C29)/1000 -> 17.2360274 | D25: ='т.4.1'!D25/т.2!D27 -> 27.4064474 | E25: =т.6!D25/'т.4.1'!D25 -> 0.4487414861 | F25: ='т.4.2'!D27/'т.4.1'!D25*100 -> 3.882438028
A26: 22 | B26: Сунтарская* | C26: =(т.4!I27/т.1!C30)/1000 -> 9.792742616 | D26: ='т.4.1'!D26/т.2!D28 -> 14.80247465 | E26: =т.6!D26/'т.4.1'!D26 -> 1.049412292 | F26: ='т.4.2'!D28/'т.4.1'!D26*100 -> 6.388955913
A27: 23 | B27: Таттинская | C27: =(т.4!I28/т.1!C31)/1000 -> 12.84460123 | D27: ='т.4.1'!D27/т.2!D29 -> 28.58642818 | E27: =т.6!D27/'т.4.1'!D27 -> 0.7342131281 | F27: ='т.4.2'!D29/'т.4.1'!D27*100 -> 1.803531598
A28: 24 | B28: Томпонская | C28: =(т.4!I29/т.1!C32)/1000 -> 13.86007937 | D28: ='т.4.1'!D28/т.2!D30 -> 26.33247889 | E28: =т.6!D28/'т.4.1'!D28 -> 0.7958336435 | F28: ='т.4.2'!D30/'т.4.1'!D28*100 -> 1.672612333
A29: 25 | B29: Усть-Алданская | C29: =(т.4!I30/т.1!C33)/1000 -> 19.85726829 | D29: ='т.4.1'!D29/т.2!D31 -> 20.34861285 | E29: =т.6!D29/'т.4.1'!D29 -> 0.964063045 | F29: ='т.4.2'!D31/'т.4.1'!D29*100 -> 2.815458614
A30: 26 | B30: Усть-Майская | C30: =(т.4!I31/т.1!C34)/1000 -> 17.7175 | D30: ='т.4.1'!D30/т.2!D32 -> 25.39132166 | E30: =т.6!D30/'т.4.1'!D30 -> 1.18102786 | F30: ='т.4.2'!D32/'т.4.1'!D30*100 -> 3.209319098
A31: 27 | B31: Усть-Янская | C31: =(т.4!I32/т.1!C35)/1000 -> 24.48271429 | D31: ='т.4.1'!D31/т.2!D33 -> 45.26650819 | E31: =т.6!D31/'т.4.1'!D31 -> 0.2643906196 | F31: ='т.4.2'!D33/'т.4.1'!D31*100 -> 0.2188132735
A32: 28 | B32: Хангаласская | C32: =(т.4!I33/т.1!C36)/1000 -> 9.591151515 | D32: ='т.4.1'!D32/т.2!D34 -> 10.02019818 | E32: =т.6!D32/'т.4.1'!D32 -> 0.9541433392 | F32: ='т.4.2'!D34/'т.4.1'!D32*100 -> 3.131358449
A33: 29 | B33: Чурапчинская | C33: =(т.4!I34/т.1!C37)/1000 -> 13.04052133 | D33: ='т.4.1'!D33/т.2!D35 -> 27.57893154 | E33: =т.6!D33/'т.4.1'!D33 -> 0.6346204866 | F33: ='т.4.2'!D35/'т.4.1'!D33*100 -> 2.595264487
A34: 30 | B34: Мирнинская | C34: =(т.4!I35/т.1!C38)/1000 -> 3.19798331 | D34: ='т.4.1'!D34/т.2!D36 -> 13.50810716 | E34: =т.6!D34/'т.4.1'!D34 -> 1.495961902 | F34: ='т.4.2'!D36/'т.4.1'!D34*100 -> 2.64640007
A35: 31 | B35: Нерюнгринская | C35: =(т.4!I36/т.1!C39)/1000 -> 1.905901202 | D35: ='т.4.1'!D35/т.2!D37 -> 10.8597946 | E35: =т.6!D35/'т.4.1'!D35 -> 2.12209286 | F35: ='т.4.2'!D37/'т.4.1'!D35*100 -> 4.053183143
A36: 32 | B36: Эвено-Бытантайская | C36: =(т.4!I37/т.1!C40)/1000 -> 14.64827586 | D36: ='т.4.1'!D36/т.2!D38 -> 29.81052632 | E36: =т.6!D36/'т.4.1'!D36 -> 0.9068502825 | F36: ='т.4.2'!D38/'т.4.1'!D36*100 -> 0.3695856874
A37: 33 | B37: Якутская | C37: =(т.4!I38/т.1!C41)/1000 -> 1.330535714 | D37: ='т.4.1'!D37/т.2!D39 -> 7.553459017 | E37: =т.6!D37/'т.4.1'!D37 -> 2.766697261 | F37: ='т.4.2'!D38/'т.4.1'!D36*100 -> 0.3695856874
A38: 34 | B38: Алданская | C38: =(т.4!I39/т.1!C42)/1000 -> 3.177912371 | D38: ='т.4.1'!D38/т.2!D40 -> 15.82633808 | E38: =т.6!D38/'т.4.1'!D38 -> 1.00076235 | F38: ='т.4.2'!D40/'т.4.1'!D38*100 -> 8.046843954
A39: 35 | B39: М.-Кангаласская | C39: =(т.4!I40/т.1!C43)/1000 -> 14.66764331 | D39: ='т.4.1'!D39/т.2!D41 -> 28.15183374 | E39: =т.6!D39/'т.4.1'!D39 -> 0.4640940238 | F39: ='т.4.2'!D41/'т.4.1'!D39*100 -> 1.491432244
A40: 36 | B40: ГБ г.Нерюнгри | D40: ='т.4.1'!D40/т.2!D42 -> 13.14084507 | E40: =т.6!D40/'т.4.1'!D40 -> 1.326659281 | F40: ='т.4.2'!D42/'т.4.1'!D40*100 -> 2.50929954
A41: 37 | B41: Бердигестях ДБ | D41: ='т.4.1'!D41/т.2!D43 -> 11.52933057 | E41: =т.6!D41/'т.4.1'!D41 -> 0.7861846043 | F41: ='т.4.2'!D43/'т.4.1'!D41*100 -> 5.650664432
A42: 38 | B42: Б-ка ГО "Жатай" | C42: =(т.4!I43/т.1!C46)/1000 -> 1.988571429 | D42: ='т.4.1'!D42/т.2!D44 -> 7.603787327 | E42: =т.6!D42/'т.4.1'!D42 -> 2.407806513 | F42: ='т.4.2'!D44/'т.4.1'!D42*100 -> 0.9578544061
A43: 39 | B43: Алданский БИЦ | D43: ='т.4.1'!D43/т.2!D45 -> 9.700981767 | E43: =т.6!D43/'т.4.1'!D43 -> 2.100942632 | F43: ='т.4.2'!D45/'т.4.1'!D43*100 -> 2.25826972
A44: 40 | B44: Томмотский БИЦ | D44: ='т.4.1'!D44/т.2!D46 -> 8.418401332 | E44: =т.6!D44/'т.4.1'!D44 -> 2.929751249 | F44: ='т.4.2'!D46/'т.4.1'!D44*100 -> 4.453291133
B45: Итого по МБ | C45: =(т.4!I46/т.1!C49)/1000 -> 6.913944394 | D45: ='т.4.1'!D45/т.2!D47 -> 17.66679592 | E45: =т.6!D45/'т.4.1'!D45 -> 1.024815719 | F45: ='т.4.2'!D47*100/'т.4.1'!D45 -> 2.813736503
B46: НБ РС(Я) | D46: ='т.4.1'!D46/т.2!D48 -> 46.11885695 | E46: =т.6!D46/'т.4.1'!D46 -> 0.9931282921 | F46: ='т.4.2'!D48*100/'т.4.1'!D46 -> 1.546074813
B47: Филиал НБ "ДТК" | D47: ='т.4.1'!D47/т.2!D49 -> 21.37117363 | E47: =т.6!D47/'т.4.1'!D47 -> 1.119377885 | F47: ='т.4.2'!D49*100/'т.4.1'!D47 -> 0.8217160354
B48: РБС | D48: ='т.4.1'!D48/т.2!D50 -> 65.44625551 | E48: =т.6!D48/'т.4.1'!D48 -> 0.6114981523 | F48: ='т.4.2'!D50*100/'т.4.1'!D48 -> 2.692460438
B49: ВСЕГО | C49: =(т.4!I50/т.1!C53)/1000 -> 8.953546186 | D49: ='т.4.1'!D49/т.2!D51 -> 20.3944747 | E49: =т.6!D49/'т.4.1'!D49 -> 1.013624771 | F49: ='т.4.2'!D51*100/'т.4.1'!D49 -> 2.530129431

Sheet т.6
F1: Таблица 6
A2: Выдача документов из фондов библиотек
A4: № | B4: ЦБС | C4: 2020 | D4: 2021 | E4: "+ -" | F4: в городе | G4: на селе
A5: 1 | B5: Абыйская | C5: 31701 | D5: 38484 | E5: =D5 - C5 -> 6783 | F5: =D5 - G5 -> 25441 | G5: 13043
A6: 2 | B6: Аллаиховская | C6: 15941 | D6: 43986 | E6: 28045 | F6: 35087 | G6: 8899
A7: 3 | B7: Амгинская | C7: 123399 | D7: 137207 | E7: 13808 | F7: =D7-G7 -> 0 | G7: 137207
A8: 4 | B8: Анабарская | C8: 21793 | D8: 21101 | E8: -692 | F8: =D8-G8 -> 0 | G8: 21101
A9: 5 | B9: Булунская | C9: 113316 | D9: 155877 | E9: 42561 | F9: 103383 | G9: 52494
A10: 6 | B10: Верхневилюйская | C10: 149592 | D10: 292662 | E10: 143070 | F10: =D10-G10 -> 0 | G10: 292662
A11: 7 | B11: Верхнеколымская | C11: 83540 | D11: 107032 | E11: 23492 | F11: 81144 | G11: 25888
A12: 8 | B12: Верхоянская | C12: 62843 | D12: 119315 | E12: 56472 | F12: 70146 | G12: 49169
A13: 9 | B13: Вилюйская | C13: 191395 | D13: 188135 | E13: -3260 | F13: 104046 | G13: 84089
A14: 10 | B14: Горная | C14: 82533 | D14: 148524 | E14: 65991 | F14: 0 | G14: 148524
A15: 11 | B15: Жиганская | C15: 38042 | D15: 55958 | E15: 17916 | F15: 0 | G15: 55958
A16: 12 | B16: Кобяйская | C16: 134082 | D16: 149465 | E16: 15383 | F16: 109353 | G16: 40112
A17: 13 | B17: Ленская | C17: 145655 | D17: 313687 | E17: 168032 | F17: 239446 | G17: 74241
A18: 14 | B18: Момская | C18: 33468 | D18: 30430 | E18: -3038 | F18: 0 | G18: 30430
A19: 15 | B19: Намская | C19: 96639 | D19: 227189 | E19: 130550 | F19: =D19-G19 -> 0 | G19: 227189
A20: 16 | B20: Нижнеколымская | C20: 32575 | D20: 47825 | E20: 15250 | F20: 42518 | G20: 5307
A21: 17 | B21: Нюрбинская | C21: 176390 | D21: 189888 | E21: 13498 | F21: 62308 | G21: 127580
A22: 18 | B22: Оймяконская | C22: 54679 | D22: 102053 | E22: 47374 | F22: 62138 | G22: 39915
A23: 19 | B23: Олекминская | C23: 137747 | D23: 189950 | E23: 52203 | F23: 86610 | G23: 103340
A24: 20 | B24: Оленекская | C24: 32614 | D24: 38226 | E24: 5612 | F24: 0 | G24: 38226
A25: 21 | B25: Среднеколымская | C25: 35338 | D25: 56462 | E25: 21124 | F25: 25710 | G25: 30752
A26: 22 | B26: Сунтарская* | C26: 192417 | D26: 243556 | E26: 51139 | F26: 0 | G26: 243556
A27: 23 | B27: Таттинская | C27: 193891 | D27: 153720 | E27: -40171 | F27: 0 | G27: 153720
A28: 24 | B28: Томпонская | C28: 118006 | D28: 138982 | E28: 20976 | F28: 61315 | G28: 77667
A29: 25 | B29: Усть-Алданская | C29: 309439 | D29: 392445 | E29: 83006 | F29: 0 | G29: 392445
A30: 26 | B30: Усть-Майская | C30: 138591 | D30: 150659 | E30: 12068 | F30: 110354 | G30: 40305
A31: 27 | B31: Усть-Янская | C31: 74955 | D31: 45311 | E31: -29644 | F31: 33589 | G31: 11722
A32: 28 | B32: Хангаласская | C32: 195168 | D32: 301994 | E32: 106826 | F32: 130398 | G32: 171596
A33: 29 | B33: Чурапчинская | C33: 175272 | D33: 174619 | E33: -653 | F33: 0 | G33: 174619
A34: 30 | B34: Мирнинская | C34: 276882 | D34: 343974 | E34: 67092 | F34: 327776 | G34: 16198
A35: 31 | B35: Нерюнгринская | C35: 278625 | D35: 302933 | E35: 24308 | F35: 281202 | G35: 21731
A36: 32 | B36: Эвено-Бытантайcкая | C36: 13556 | D36: 38523 | E36: 24967 | F36: 0 | G36: 38523
A37: 33 | B37: Якутская | C37: 562167 | D37: 1278109 | E37: =D37 - C37 -> 715942 | F37: =D37 - G37 -> 1154060 | G37: 124049
A38: 34 | B38: Алданская | C38: 148796 | D38: 123397 | E38: =D38 - C38 -> -25399 | F38: =D38 - G38 -> 106277 | G38: 17120
A39: 35 | B39: Мегино-Кангаласская | C39: 205354 | D39: 213745 | E39: =D39 - C39 -> 8391 | F39: =D39 - G39 -> 7374 | G39: 206371
A40: 36 | B40: ГБ г.Нерюнгри | C40: 80221 | D40: 147295 | E40: 67074 | F40: 147295 | G40: 0
A41: 37 | B41: Бердигестях ДБ | C41: 24512 | D41: 13134 | F41: 0 | G41: 13134
A42: 38 | B42: Б-ка ГО "п. Жатай" | C42: 26933 | D42: 50275 | E42: =D42 - C42 -> 23342 | F42: 50275 | G42: 0
A43: 39 | B43: Алданский БИЦ | C43: 61277 | D43: 72659 | E43: =D43 - C43 -> 11382 | F43: =D43 - G43 -> 71259 | G43: 1400
A44: 40 | B44: Томмотский БИЦ | C44: 67826 | D44: 118485 | E44: 50659 | F44: 110678 | G44: 7807
B45: Итого по МБ | C45: =SUM(C5:C44) -> 4937170 | D45: =SUM(D5:D44) -> 6957271 | E45: 2020101 | F45: 3639182 | G45: =SUM(G5:G44) -> 3318089
B46: НБ РС(Я) | C46: 3056910 | D46: 1670122 | E46: -1386788 | F46: 1670122 | G46: 0
B47: Филиал НБ "ДТК" | C47: 65725 | D47: 193030 | E47: 127305 | F47: 193030 | G47: 0
B48: РБС | C48: 63425 | D48: 90846 | E48: 27421 | F48: 90846 | G48: 0
B49: Итого по РС(Я) | C49: =SUM(C45:C48) -> 8123230 | D49: =SUM(D45:D48) -> 8911269 | E49: 788039 | F49: =SUM(F45:F48) -> 5593180 | G49: =SUM(G45:G48) -> 3318089

Sheet т.6.1
G1: Таблица 6.1
A2: Выдача документов из фондов библиотек
A4: № | B4: ЦБС | C4: 2020 | D4: 2021 | E4: в том числе
E5: из фонда на физ. нос. | F5: из ЭБ | G5: инсталл. док. | H5: сетев. удал. лиц. док.
A6: 1 | B6: Абыйская | C6: 31701 | D6: 38484 | E6: 38484
A7: 2 | B7: Аллаиховская | C7: 15941 | D7: 43986 | E7: 43986
A8: 3 | B8: Амгинская | C8: 123399 | D8: 137207 | E8: 134474 | F8: 730 | H8: 2003
A9: 4 | B9: Анабарская | C9: 21793 | D9: 21101 | E9: 21056 | F9: 45
A10: 5 | B10: Булунская | C10: 113316 | D10: 155877 | E10: 155877
A11: 6 | B11: Верхневилюйская | C11: 149592 | D11: 292662 | E11: 292405 | F11: 96 | G11: 161
A12: 7 | B12: Верхнеколымская | C12: 83540 | D12: 107032 | E12: 106431 | G12: 235 | H12: 366
A13: 8 | B13: Верхоянская | C13: 62843 | D13: 119315 | E13: 119235 | G13: 80
A14: 9 | B14: Вилюйская | C14: 191395 | D14: 188135 | E14: 183987 | F14: 4148
A15: 10 | B15: Горная | C15: 82533 | D15: 148524 | E15: 147599 | G15: 283 | H15: 642
A16: 11 | B16: Жиганская | C16: 38042 | D16: 55958 | E16: 55958
A17: 12 | B17: Кобяйская | C17: 134082 | D17: 149465 | E17: 148027 | F17: 1438
A18: 13 | B18: Ленская | C18: 145655 | D18: 313687 | E18: 309400 | G18: 71 | H18: 4216
A19: 14 | B19: Момская | C19: 33468 | D19: 30430 | E19: 30430
A20: 15 | B20: Намская | C20: 96639 | D20: 227189 | E20: 226898 | G20: 59 | H20: 232
A21: 16 | B21: Нижнеколымская | C21: 32575 | D21: 47825 | E21: 47825
A22: 17 | B22: Нюрбинская | C22: 176390 | D22: 189888 | E22: 189888
A23: 18 | B23: Оймяконская | C23: 54679 | D23: 102053 | E23: 102053
A24: 19 | B24: Олекминская | C24: 137747 | D24: 189950 | E24: 189617 | F24: 333
A25: 20 | B25: Оленекская | C25: 32614 | D25: 38226 | E25: 38226
A26: 21 | B26: Среднеколымская | C26: 35338 | D26: 56462 | E26: 56462
A27: 22 | B27: Сунтарская* | C27: 192417 | D27: 243556 | E27: 243319 | G27: 25 | H27: 212
A28: 23 | B28: Таттинская | C28: 193891 | D28: 153720 | E28: 148292 | F28: 3334 | G28: 4 | H28: 2090
A29: 24 | B29: Томпонская | C29: 118006 | D29: 138982 | E29: 133291 | F29: 5205 | G29: 209 | H29: 277
A30: 25 | B30: Усть-Алданская | C30: 309439 | D30: 392445 | E30: 367066 | F30: 20035 | G30: 5344
A31: 26 | B31: Усть-Майская | C31: 138591 | D31: 150659 | E31: 150659
A32: 27 | B32: Усть-Янская | C32: 74955 | D32: 45311 | E32: 45311
A33: 28 | B33: Хангаласская | C33: 195168 | D33: 301994 | E33: 281610 | F33: 19318 | G33: 828 | H33: 238
A34: 29 | B34: Чурапчинская | C34: 175272 | D34: 174619 | E34: 174619
A35: 30 | B35: Мирнинская | C35: 276882 | D35: 343974 | E35: 341550 | G35: 1402 | H35: 1022
A36: 31 | B36: Нерюнгринская | C36: 278625 | D36: 302933 | E36: 285986 | F36: 3614 | G36: 626 | H36: 12707
A37: 32 | B37: Эвено-Бытантайcкая | C37: 13556 | D37: 38523 | E37: 38523
A38: 33 | B38: Якутская | C38: 562167 | D38: 1278109 | E38: 1259519 | G38: 301 | H38: 18289
A39: 34 | B39: Алданская | C39: 148796 | D39: 123397 | E39: 119229 | F39: 1408 | G39: 1497 | H39: 1263
A40: 35 | B40: Мег.-Кангаласская | C40: 205354 | D40: 213745 | E40: 213699 | F40: 46
A41: 36 | B41: ГБ г.Нерюнгри | C41: 80221 | D41: 147295 | E41: 146501 | G41: 491 | H41: 303
A42: 37 | B42: Бердигестях ДБ | C42: 24512 | D42: 13134 | E42: 12959 | H42: 175
A43: 38 | B43: Б-ка ГО "п. Жатай" | C43: 26933 | D43: 50275 | E43: 50275
A44: 39 | B44: Алданский БИЦ | C44: 61277 | D44: 72659 | E44: 72659
A45: 40 | B45: Томмотский БИЦ | C45: 67826 | D45: 118485 | E45: 118182 | F45: 303
B46: Итого по МБ | C46: =SUM(C6:C45) -> 4937170 | D46: 6957271 | E46: 6841567 | F46: 60053 | G46: 11616 | H46: 44035
B47: НБ РС(Я) | C47: 3056910 | D47: 1670122 | E47: 412868 | F47: 1222584 | G47: 2069 | H47: 32601
B48: Филиал НБ "ДТК" | C48: 65725 | D48: 193030 | E48: 193030
B49: РБС | C49: 63425 | D49: 90846 | E49: 49035 | F49: 29687 | H49: 12124
B50: Итого по РС(Я) | C50: =SUM(C46:C49) -> 8123230 | D50: 8911269 | E50: 7496500 | F50: 1312324 | G50: 13685 | H50: 88760

Sheet т.7
G1: Таблица 7
A2: Общие сведения.
A3: Характеристика помещений библиотек республики.
A5: № | B5: ЦБС | C5: Кол-во биб-к всего | D5: Общая площадь (кв.м.) | E5: требуют кап. ремонта (ед.) | F5: аварий- ных (ед.) | G5: арендо- ванных (ед.) | H5: прочие
A6: 1 | B6: Абыйская | C6: 7 | D6: 678.3
A7: 2 | B7: Аллаиховская | C7: 6 | D7: 401.3 | E7: 1
A8: 3 | B8: Амгинская | C8: 16 | D8: 1365.7
A9: 4 | B9: Анабарская | C9: 3 | D9: 251
A10: 5 | B10: Булунская | C10: 8 | D10: 862.8 | E10: 5
A11: 6 | B11: Верхневилюйская | C11: 23 | D11: 2363.8
A12: 7 | B12: Верхнеколымская | C12: 7 | D12: 1255.2 | G12: 1
A13: 8 | B13: Верхоянская | C13: 17 | D13: 1222.2
A14: 9 | B14: Вилюйская | C14: 24 | D14: 1772.8 | F14: 1
A15: 10 | B15: Горная | C15: 9 | D15: 856.3
A16: 11 | B16: Жиганская | C16: 5 | D16: 270.8
A17: 12 | B17: Кобяйская | C17: 17 | D17: 1516.3 | G17: 10
A18: 13 | B18: Ленская | C18: 21 | D18: 2376.7 | G18: 5
A19: 14 | B19: Момская | C19: 7 | D19: 591.9
A20: 15 | B20: Намская | C20: 20 | D20: 1721.8 | E20: 2 | F20: 1
A21: 16 | B21: Нижнеколымская | C21: 6 | D21: 605.7 | E21: 1
A22: 17 | B22: Нюрбинская | C22: 23 | D22: 1650.9
A23: 18 | B23: Оймяконская | C23: 9 | D23: 803.3 | G23: 2
A24: 19 | B24: Олекминская | C24: 27 | D24: 1499.6
A25: 20 | B25: Оленекская | C25: 5 | D25: 374.9 | E25: 1
A26: 21 | B26: Среднеколымская | C26: 11 | D26: 588.5
A27: 22 | B27: Сунтарская* | C27: 22 | D27: 1802.5 | F27: 2
A28: 23 | B28: Таттинская | C28: 15 | D28: 1614.2 | E28: 1 | F28: 1
A29: 24 | B29: Томпонская | C29: 13 | D29: 2202.7 | F29: 1 | G29: 1
A30: 25 | B30: Усть-Алданская | C30: 28 | D30: 2901.9 | F30: 2
A31: 26 | B31: Усть-Майская | C31: 10 | D31: 623.1 | G31: 7
A32: 27 | B32: Усть-Янская | C32: 9 | D32: 555 | G32: 9
A33: 28 | B33: Хангаласская | C33: 24 | D33: 2648.6
A34: 29 | B34: Чурапчинская | C34: 19 | D34: 1719.4
A35: 30 | B35: Мирнинская | C35: 11 | D35: 2679.1 | E35: 1 | G35: 8
A36: 31 | B36: Нерюнгринская | C36: 8 | D36: 1523.3
A37: 32 | B37: Эвено-Бытантайская | C37: 3 | D37: 167
A38: 33 | B38: Якутская | C38: 18 | D38: 8059.1 | E38: 1 | F38: 1 | G38: 2
A39: 34 | B39: Алданская | C39: 9 | D39: 1168 | G39: 4
A40: 35 | B40: Мегино-Кангаласская | C40: 31 | D40: 2678.1 | F40: 5
A41: 36 | B41: ГБ г.Нерюнгри | C41: 1 | D41: 1527.5
A42: 37 | B42: Бердигестях ДБ | C42: 1 | D42: 192.2
A43: 38 | B43: Б-ка ГО "п. Жатай" | C43: 1 | D43: 270
A44: 39 | B44: Алданский БИЦ | C44: 2 | D44: 427.2 | G44: 1
A45: 40 | B45: Томмотский БИЦ | C45: 3 | D45: 345
B46: Итого по МБ | C46: =SUM(C6:C45) -> 499 | D46: =SUM(D6:D45) -> 56133.7 | E46: =SUM(E6:E45) -> 13 | F46: =SUM(F6:F45) -> 14 | G46: =SUM(G6:G45) -> 50 | H46: =SUM(H6:H43) -> 0
B47: НБ РС(Я) | C47: 1 | D47: 9010.5 | E47: 1
B48: Филиал НБ "ДТК" | C48: 1 | D48: 1274.4 | G48: 1
B49: РБС | C49: 1 | D49: 328.5
B50: Итого по РС(Я) | C50: =SUM(C46:C49) -> 502 | D50: =SUM(D46:D49) -> 66747.1 | E50: 14 | F50: 14 | G50: 51 | H50: 0

Sheet т.8
I1: Таблица 8
A2: Материально-техническая база библиотек республики.
A3: Количество технических средств, средств связи
A5: № | B5: ЦБС | C5: Всего | D5: число | E5: число | F5: число | G5: число библиотек, имеющих
C6: кол-во | D6: посад. | E6: посад. | F6: посад. | G6: здание | H6: спец. | I6: Интернет | J6: доступ
C7: биб-к | D7: мест | E7: мест | F7: мест | G7: для лиц | H7: оборуд. | I7: сайт | J7: в
D8: для польз. | E8: комп. | F8: с Инт. | G8: с ОВЗ | H8: для инвал. | I8: или стр. | J8: Инт.
A9: 1 | B9: Абыйская | C9: 7 | D9: 74 | E9: 9 | F9: 9 | G9: 2 | H9: 2 | I9: 1 | J9: 7
A10: 2 | B10: Аллаиховская | C10: 6 | D10: 56 | E10: 6 | F10: 5 | I10: 1 | J10: 6
A11: 3 | B11: Амгинская | C11: 16 | D11: 138 | E11: 27 | F11: 25 | G11: 7 | H11: 2 | I11: 3 | J11: 16
A12: 4 | B12: Анабарская | C12: 3 | D12: 25 | E12: 3 | F12: 3 | G12: 2 | H12: 1 | I12: 1 | J12: 3
A13: 5 | B13: Булунская | C13: 8 | D13: 122 | E13: 10 | F13: 8 | I13: 1 | J13: 8
A14: 6 | B14: Верхневилюйская | C14: 23 | D14: 350 | E14: 57 | F14: 48 | G14: 15 | H14: 1 | I14: 2 | J14: 23
A15: 7 | B15: Верхнеколымская | C15: 7 | D15: 116 | E15: 17 | F15: 12 | G15: 2 | H15: 2 | I15: 1 | J15: 7
A16: 8 | B16: Верхоянская | C16: 17 | D16: 169 | E16: 13 | F16: 9 | G16: 2 | I16: 1 | J16: 9
A17: 9 | B17: Вилюйская | C17: 24 | D17: 219 | E17: 36 | F17: 18 | G17: 14 | I17: 1 | J17: 23
A18: 10 | B18: Горная | C18: 9 | D18: 93 | E18: 14 | F18: 11 | G18: 2 | I18: 1 | J18: 9
A19: 11 | B19: Жиганская | C19: 5 | D19: 37 | E19: 7 | F19: 7 | I19: 1 | J19: 5
A20: 12 | B20: Кобяйская | C20: 17 | D20: 220 | E20: 39 | F20: 38 | I20: 2 | J20: 17
A21: 13 | B21: Ленская | C21: 21 | D21: 196 | E21: 25 | F21: 25 | G21: 6 | I21: 1 | J21: 21
A22: 14 | B22: Момская | C22: 7 | D22: 65 | E22: 9 | F22: 6 | G22: 1 | J22: 6
A23: 15 | B23: Намская | C23: 20 | D23: 241 | E23: 38 | F23: 34 | G23: 11 | H23: 1 | I23: 20 | J23: 20
A24: 16 | B24: Нижнеколымская | C24: 6 | D24: 48 | E24: 6 | F24: 5 | I24: 1 | J24: 6
A25: 17 | B25: Нюрбинская | C25: 23 | D25: 212 | E25: 24 | F25: 22 | G25: 23 | I25: 1 | J25: 22
A26: 18 | B26: Оймяконская | C26: 9 | D26: 86 | E26: 3 | F26: 3 | I26: 1 | J26: 8
A27: 19 | B27: Олекминская | C27: 27 | D27: 285 | E27: 61 | F27: 48 | G27: 8 | H27: 1 | I27: 2 | J27: 26
A28: 20 | B28: Оленекская | C28: 5 | D28: 34 | E28: 6 | F28: 5 | I28: 2 | J28: 5
A29: 21 | B29: Среднеколымская | C29: 11 | D29: 60 | E29: 10 | F29: 10 | I29: 1 | J29: 10
A30: 22 | B30: Сунтарская* | C30: 22 | D30: 226 | E30: 29 | F30: 24 | G30: 13 | I30: 3 | J30: 22
A31: 23 | B31: Таттинская | C31: 15 | D31: 157 | E31: 25 | F31: 23 | G31: 1 | I31: 15 | J31: 15
A32: 24 | B32: Томпонская | C32: 13 | D32: 159 | E32: 28 | F32: 27 | G32: 2 | H32: 1 | I32: 1 | J32: 12
A33: 25 | B33: Усть-Алданская | C33: 28 | D33: 339 | E33: 55 | F33: 39 | G33: 11 | H33: 2 | I33: 27 | J33: 28
A34: 26 | B34: Усть-Майская | C34: 10 | D34: 56 | E34: 3 | F34: 3 | I34: 1 | J34: 10
A35: 27 | B35: Усть-Янская | C35: 9 | D35: 57 | E35: 2 | F35: 2 | I35: 1 | J35: 9
A36: 28 | B36: Хангаласская | C36: 24 | D36: 269 | E36: 69 | F36: 56 | G36: 7 | I36: 5 | J36: 21
A37: 29 | B37: Чурапчинская | C37: 19 | D37: 225 | E37: 40 | F37: 34 | G37: 1 | H37: 1 | I37: 2 | J37: 19
A38: 30 | B38: Мирнинская | C38: 11 | D38: 250 | E38: 25 | F38: 21 | G38: 4 | H38: 3 | I38: 1 | J38: 11
A39: 31 | B39: Нерюнгринская | C39: 8 | D39: 143 | E39: 33 | F39: 32 | G39: 4 | I39: 8 | J39: 8
A40: 32 | B40: Эвено-Бытантайская | C40: 3 | D40: 10 | E40: 1 | F40: 1 | I40: 1 | J40: 3
A41: 33 | B41: Якутская | C41: 18 | D41: 657 | E41: 117 | F41: 115 | G41: 11 | H41: 9 | I41: 1 | J41: 18
A42: 34 | B42: Алданская | C42: 9 | D42: 118 | E42: 26 | F42: 24 | G42: 3 | H42: 1 | I42: 1 | J42: 8
A43: 35 | B43: Мег.-Кангаласская | C43: 31 | D43: 297 | E43: 62 | F43: 56 | G43: 16 | I43: 31 | J43: 31
A44: 36 | B44: ГБ г.Нерюнгри | C44: 1 | D44: 208 | E44: 13 | F44: 13 | G44: 1 | H44: 1 | I44: 1 | J44: 1
A45: 37 | B45: Бердигестях ДБ | C45: 1 | D45: 36 | E45: 6 | F45: 6 | G45: 1 | I45: 1 | J45: 1
A46: 38 | B46: Б-ка ГО "п. Жатай" | C46: 1 | D46: 27 | G46: 1 | I46: 1 | J46: 1
A47: 39 | B47: Алданский БИЦ | C47: 2 | D47: 71 | E47: 5 | F47: 4 | G47: 1 | I47: 1 | J47: 1
A48: 40 | B48: Томмотский БИЦ | C48: 3 | D48: 69 | E48: 9 | F48: 9 | I48: 1 | J48: 3
B49: ИТОГО по МБ | C49: =SUM(C9:C48) -> 499 | D49: =SUM(D9:D48) -> 6220 | E49: =SUM(E9:E48) -> 968 | F49: =SUM(F9:F48) -> 840 | G49: =SUM(G9:G47) -> 172 | H49: =SUM(H9:H46) -> 28 | I49: =SUM(I9:I48) -> 148 | J49: =SUM(J9:J48) -> 479
B50: НБ РС(Я) | C50: 1 | D50: 404 | E50: 49 | F50: 38 | G50: 1 | H50: 1 | I50: 1 | J50: 1
B51: Филиал НБ "ДТК" | C51: 1 | D51: 139 | E51: 7 | F51: 7 | H51: 1 | I51: 1 | J51: 1
B52: РБС | C52: 1 | D52: 16 | E52: 8 | F52: 8 | H52: 1 | I52: 1 | J52: 1
B53: Итого по РС(Я) | C53: =SUM(C49:C52) -> 502 | D53: 6779 | E53: 1032 | F53: =SUM(F49:F52) -> 893 | G53: 173 | H53: 31 | I53: 151 | J53: 482

Sheet т.8.1
I1: Таблица 8.1
A2: Материально-техническая база библиотек на селе.
A3: Количество технических средств, средств связи
A5: № | B5: ЦБС | C5: Всего | D5: число | E5: число | F5: число | G5: число библиотек, имеющих
C6: кол-во | D6: посад. | E6: посад. | F6: посад. | G6: здание | H6: спец. | I6: Интернет | J6: доступ
C7: биб-к | D7: мест | E7: мест | F7: мест | G7: для лиц | H7: оборуд. | I7: сайт | J7: в
D8: для польз. | E8: компьют. | F8: с Инт. | G8: с ОВЗ, пандус | H8: для инвал. | J8: Интернет
A9: 1 | B9: Абыйская | C9: 5 | D9: 48 | E9: 5 | F9: 5 | J9: 5
A10: 2 | B10: Аллаиховская | C10: 4 | D10: 30 | E10: 3 | F10: 2 | J10: 4
A11: 3 | B11: Амгинская | C11: 16 | D11: 138 | E11: 27 | F11: 25 | G11: 7 | H11: 2 | I11: 3 | J11: 16
A12: 4 | B12: Анабарская | C12: 3 | D12: 25 | E12: 3 | F12: 3 | G12: 2 | H12: 1 | I12: 1 | J12: 3
A13: 5 | B13: Булунская | C13: 6 | D13: 48 | E13: 5 | F13: 3 | J13: 6
A14: 6 | B14: Верхневилюйская | C14: 23 | D14: 350 | E14: 57 | F14: 48 | G14: 15 | H14: 1 | I14: 2 | J14: 23
A15: 7 | B15: Верхнеколымская | C15: 5 | D15: 55 | E15: 9 | F15: 5 | J15: 5
A16: 8 | B16: Верхоянская | C16: 13 | D16: 102 | E16: 8 | F16: 5 | J16: 6
A17: 9 | B17: Вилюйская | C17: 20 | D17: 126 | E17: 20 | F17: 13 | G17: 11 | J17: 19
A18: 10 | B18: Горная | C18: 9 | D18: 93 | E18: 14 | F18: 11 | G18: 2 | I18: 1 | J18: 9
A19: 11 | B19: Жиганская | C19: 5 | D19: 37 | E19: 7 | F19: 7 | I19: 1 | J19: 5
A20: 12 | B20: Кобяйская | C20: 15 | D20: 174 | E20: 24 | F20: 23 | I20: 1 | J20: 15
A21: 13 | B21: Ленская | C21: 14 | D21: 43 | E21: 14 | F21: 14 | G21: 3 | J21: 14
A22: 14 | B22: Момская | C22: 7 | D22: 65 | E22: 9 | F22: 6 | G22: 1 | J22: 6
A23: 15 | B23: Намская | C23: 20 | D23: 241 | E23: 38 | F23: 34 | G23: 11 | H23: 1 | I23: 20 | J23: 20
A24: 16 | B24: Нижнеколымская | C24: 3 | D24: 19 | E24: 3 | F24: 3 | J24: 3
A25: 17 | B25: Нюрбинская | C25: 20 | D25: 150 | E25: 21 | F25: 19 | G25: 20 | J25: 19
A26: 18 | B26: Оймяконская | C26: 6 | D26: 56 | E26: 1 | F26: 1 | J26: 5
A27: 19 | B27: Олекминская | C27: 25 | D27: 200 | E27: 48 | F27: 35 | G27: 6 | J27: 24
A28: 20 | B28: Оленекская | C28: 5 | D28: 34 | E28: 6 | F28: 5 | I28: 2 | J28: 5
A29: 21 | B29: Среднеколымская | C29: 9 | D29: 38 | E29: 8 | F29: 8 | J29: 8
A30: 22 | B30: Сунтарская* | C30: 22 | D30: 226 | E30: 29 | F30: 24 | G30: 13 | I30: 3 | J30: 22
A31: 23 | B31: Таттинская | C31: 15 | D31: 157 | E31: 25 | F31: 23 | G31: 1 | I31: 15 | J31: 15
A32: 24 | B32: Томпонская | C32: 10 | D32: 79 | E32: 6 | F32: 5 | J32: 9
A33: 25 | B33: Усть-Алданская | C33: 28 | D33: 339 | E33: 55 | F33: 39 | G33: 11 | H33: 2 | I33: 27 | J33: 28
A34: 26 | B34: Усть-Майская | C34: 5 | D34: 12 | J34: 5
A35: 27 | B35: Усть-Янская | C35: 5 | D35: 17 | J35: 5
A36: 28 | B36: Хангаласская | C36: 21 | D36: 182 | E36: 43 | F36: 32 | G36: 5 | I36: 4 | J36: 18
A37: 29 | B37: Чурапчинская | C37: 19 | D37: 225 | E37: 40 | F37: 34 | G37: 1 | H37: 1 | I37: 2 | J37: 19
A38: 30 | B38: Мирнинская | C38: 3 | D38: 17 | E38: 4 | F38: 3 | J38: 3
A39: 31 | B39: Нерюнгринская | C39: 2 | D39: 18 | E39: 4 | F39: 3 | I39: 2 | J39: 2
A40: 32 | B40: Эвено-Бытантайская | C40: 3 | D40: 10 | E40: 1 | F40: 1 | I40: 1 | J40: 3
A41: 33 | B41: Якутская | C41: 4 | D41: 92 | E41: 18 | F41: 17 | G41: 4 | H41: 2 | J41: 4
A42: 34 | B42: Алданская | C42: 5 | D42: 32 | E42: 6 | F42: 4 | G42: 1 | J42: 4
A43: 35 | B43: Мег.-Кангаласская | C43: 30 | D43: 291 | E43: 61 | F43: 55 | G43: 15 | I43: 30 | J43: 30
A44: 36 | B44: Бердигестях ДБ | C44: 1 | D44: 36 | E44: 6 | F44: 6 | G44: 1 | I44: 1 | J44: 1
A45: 37 | B45: Алданский БИЦ | C45: 1 | D45: 11 | E45: 1
A46: 38 | B46: Томмотский БИЦ | C46: 1 | D46: 6 | E46: 1 | F46: 1 | J46: 1
B47: Итого по РС(Я) | C47: =SUM(C9:C46) -> 408 | D47: 3822 | E47: 630 | F47: 522 | G47: 130 | H47: 10 | I47: 116 | J47: 389

Sheet т.9
J1: Таблица 9
A2: Персонал библиотек республики
C4: Штат | D4: Числ. | E4: из них | F4: из них имеют | J4: со стажем работы
A5: № | B5: ЦБС | C5: библ. | D5: раб-ков | E5: основной | F5: высшее | G5: из них | H5: среднее | I5: из них | J5: до 3 | K5: от 3 до | L5: свыше
D6: всего | E6: персонал | F6: обр. | G6: библ. | H6: спец. | I6: библ. | J6: лет | K6: 10 лет | L6: 10 лет
A7: 1 | B7: Абыйская | C7: 21 | D7: 21 | E7: 14 | F7: 11 | G7: 5 | H7: 2 | I7: 2 | J7: 6 | K7: 4 | L7: 4
A8: 2 | B8: Аллаиховская | C8: 15.5 | D8: 17 | E8: 11 | F8: 8 | G8: 8 | H8: 2 | I8: 1 | J8: 1 | K8: 3 | L8: 7
A9: 3 | B9: Амгинская | C9: 57.5 | D9: 62 | E9: 42 | F9: 36 | G9: 28 | H9: 6 | I9: 4 | J9: 1 | K9: 12 | L9: 29
A10: 4 | B10: Анабарская | C10: 8 | D10: 8 | E10: 5 | F10: 1 | G10: 1 | H10: 3 | I10: 1 | K10: 3 | L10: 2
A11: 5 | B11: Булунская | C11: 32 | D11: 32 | E11: 21 | F11: 6 | G11: 5 | H11: 15 | I11: 9 | J11: 5 | K11: 8 | L11: 8
A12: 6 | B12: Верхневилюйская | C12: 57.5 | D12: 65 | E12: 42 | F12: 32 | G12: 30 | H12: 10 | I12: 7 | J12: 7 | K12: 10 | L12: 25
A13: 7 | B13: Верхнеколымская | C13: 17 | D13: 19 | E13: 13 | F13: 5 | G13: 3 | H13: 7 | I13: 3 | J13: 1 | K13: 5 | L13: 7
A14: 8 | B14: Верхоянская | C14: 51.5 | D14: 56 | E14: 36 | F14: 23 | G14: 19 | H14: 13 | I14: 8 | J14: 11 | K14: 7 | L14: 18
A15: 9 | B15: Вилюйская | C15: 53 | D15: 57 | E15: 43 | F15: 32 | G15: 28 | H15: 11 | I15: 6 | J15: 4 | K15: 12 | L15: 27
A16: 10 | B16: Горная | C16: 20 | D16: 20 | E16: 19 | F16: 16 | G16: 14 | H16: 2 | I16: 1 | J16: 1 | K16: 8 | L16: 10
A17: 11 | B17: Жиганская | C17: 9 | D17: 9 | E17: 7 | F17: 6 | G17: 6 | H17: 1 | I17: 1 | J17: 1 | K17: 5 | L17: 1
A18: 12 | B18: Кобяйская | C18: 46.5 | D18: 50 | E18: 32 | F18: 18 | G18: 17 | H18: 14 | I18: 10 | J18: 4 | K18: 9 | L18: 19
A19: 13 | B19: Ленская | C19: 92 | D19: 92 | E19: 55 | F19: 20 | G19: 7 | H19: 29 | I19: 11 | J19: 3 | K19: 25 | L19: 27
A20: 14 | B20: Момская | C20: 20 | D20: 22 | E20: 14 | F20: 8 | G20: 8 | H20: 6 | I20: 4 | J20: 5 | K20: 1 | L20: 8
A21: 15 | B21: Намская | C21: 56.5 | D21: 65 | E21: 38 | F21: 30 | G21: 28 | H21: 8 | I21: 2 | J21: 6 | K21: 12 | L21: 20
A22: 16 | B22: Нижнеколымская | C22: 15 | D22: 14 | E22: 13 | F22: 6 | G22: 4 | H22: 6 | I22: 4 | J22: 5 | K22: 1 | L22: 7
A23: 17 | B23: Нюрбинская | C23: 63.5 | D23: 68 | E23: 51 | F23: 37 | G23: 30 | H23: 7 | I23: 6 | J23: 9 | K23: 15 | L23: 27
A24: 18 | B24: Оймяконская | C24: 26.5 | D24: 25 | E24: 18 | F24: 9 | G24: 8 | H24: 9 | I24: 6 | J24: 2 | K24: 6 | L24: 10
A25: 19 | B25: Олекминская | C25: 60 | D25: 68 | E25: 46 | F25: 31 | G25: 12 | H25: 10 | I25: 7 | J25: 10 | K25: 13 | L25: 23
A26: 20 | B26: Оленекская | C26: 14.5 | D26: 14 | E26: 12 | F26: 6 | G26: 2 | H26: 4 | I26: 4 | J26: 2 | K26: 7 | L26: 3
A27: 21 | B27: Среднеколымская | C27: 20 | D27: 20 | E27: 17 | F27: 6 | G27: 5 | H27: 11 | I27: 9 | J27: 4 | K27: 8 | L27: 5
A28: 22 | B28: Сунтарская* | C28: 60.75 | D28: 64 | E28: 45 | F28: 28 | G28: 26 | H28: 12 | I28: 8 | J28: 4 | K28: 14 | L28: 27
A29: 23 | B29: Таттинская | C29: 42.5 | D29: 49 | E29: 30 | F29: 23 | G29: 21 | H29: 7 | I29: 6 | J29: 3 | K29: 6 | L29: 21
A30: 24 | B30: Томпонская | C30: 43 | D30: 41 | E30: 30 | F30: 17 | G30: 15 | H30: 10 | I30: 9 | J30: 9 | K30: 8 | L30: 13
A31: 25 | B31: Усть-Алданская | C31: 73 | D31: 93 | E31: 57 | F31: 49 | G31: 48 | H31: 7 | I31: 5 | J31: 4 | K31: 14 | L31: 39
A32: 26 | B32: Усть-Майская | C32: 33 | D32: 33 | E32: 23 | F32: 13 | G32: 7 | H32: 9 | I32: 4 | J32: 6 | K32: 6 | L32: 11
A33: 27 | B33: Усть-Янская | C33: 21 | D33: 19 | E33: 17 | F33: 8 | G33: 8 | H33: 7 | I33: 7 | J33: 4 | K33: 8 | L33: 5
A34: 28 | B34: Хангаласская | C34: 65 | D34: 86 | E34: 56 | F34: 44 | G34: 36 | H34: 11 | I34: 4 | J34: 14 | K34: 12 | L34: 30
A35: 29 | B35: Чурапчинская | C35: 48 | D35: 59 | E35: 37 | F35: 30 | G35: 27 | H35: 5 | I35: 3 | J35: 5 | K35: 12 | L35: 20
A36: 30 | B36: Мирнинская | C36: 69.25 | D36: 71 | E36: 47 | F36: 32 | G36: 27 | H36: 11 | I36: 5 | J36: 8 | K36: 23 | L36: 16
A37: 31 | B37: Нерюнгринская | C37: 36.5 | D37: 36 | E37: 29 | F37: 18 | G37: 9 | H37: 11 | I37: 5 | J37: 6 | K37: 6 | L37: 17
A38: 32 | B38: Эвено-Бытантай | C38: 8 | D38: 9 | E38: 5 | H38: 3 | I38: 1 | K38: 1 | L38: 4
A39: 33 | B39: Якутская | C39: 185 | D39: 194 | E39: 168 | F39: 155 | G39: 120 | H39: 13 | I39: 6 | J39: 33 | K39: 49 | L39: 86
A40: 34 | B40: Алданская | C40: 44.75 | D40: 44 | E40: 33 | F40: 11 | G40: 8 | H40: 21 | I40: 7 | J40: 5 | K40: 5 | L40: 23
A41: 35 | B41: М.-Кангаласская | C41: 67 | D41: 59 | E41: 57 | F41: 47 | G41: 42 | H41: 9 | I41: 8 | J41: 10 | K41: 19 | L41: 28
A42: 36 | B42: ГБ г.Нерюнгри | C42: 11.5 | D42: 15 | E42: 13 | F42: 12 | G42: 11 | H42: 1 | I42: 1 | J42: 2 | K42: 6 | L42: 5
A43: 37 | B43: Бердигестях ДБ | C43: 7.5 | D43: 8 | E43: 4 | F43: 4 | G43: 4 | K43: 1 | L43: 3
A44: 38 | B44: Б-ка ГО "п. Жатай" | C44: 5 | D44: 5 | E44: 3 | F44: 3 | G44: 2 | K44: 2 | L44: 1
A45: 39 | B45: Алданский БИЦ | C45: 10.5 | D45: 11 | E45: 7 | F45: 3 | G45: 1 | H45: 4 | I45: 2 | K45: 4 | L45: 3
A46: 40 | B46: Томмотский БИЦ | C46: 10 | D46: 9 | E46: 6 | F46: 3 | G46: 2 | H46: 2 | I46: 2 | J46: 1 | K46: 2 | L46: 3
B47: Итого по МБ | C47: =SUM(C7:C46) -> 1597.75 | D47: 1709 | E47: 1216 | F47: 847 | G47: 682 | H47: 319 | I47: 189 | J47: 202 | K47: 372 | L47: 642
B48: НБ РС(Я) | C48: 222.5 | D48: 249 | E48: 236 | F48: 221 | G48: 158 | H48: 15 | I48: 7 | J48: 62 | K48: 64 | L48: 110
B49: Филиал НБ "ДТК" | C49: 34 | D49: 34 | E49: 34 | F49: 34 | G49: 22 | J49: 7 | K49: 6 | L49: 21
B50: РБС | C50: 17.5 | D50: 18 | E50: 15 | F50: 13 | G50: 11 | H50: 2 | J50: 4 | K50: 4 | L50: 7
B51: Итого по РС(Я) | C51: =SUM(C47:C50) -> 1871.75 | D51: =SUM(D47:D50) -> 2010 | E51: 1501 | F51: 1115 | G51: 873 | H51: 336 | I51: 196 | J51: 275 | K51: 446 | L51: 780

Sheet т.9.1
K1: Таблица 9.1
A2: Персонал библиотек (из общего числа - в сельской местности)
C4: Штат | D4: Числ. | E4: из них | F4: из них имеют | J4: со стажем работы
A5: № | B5: ЦБС | C5: библ. | D5: раб-ков | E5: осн. | F5: высшее | G5: из них | H5: среднее | I5: из них | J5: от 3 до | K5: от 6 до | L5: свыше
D6: всего | E6: перс. | F6: обр. | G6: библ. | H6: спец. | I6: библ. | J6: 6 лет | K6: 10 лет | L6: 10 лет
A7: 1 | B7: Абыйская | C7: 11 | D7: 11 | E7: 6 | F7: 4 | G7: 2 | H7: 1 | I7: 1 | J7: 2 | K7: 1 | L7: 3
A8: 2 | B8: Аллаиховская | C8: 5.5 | D8: 7 | E8: 4 | F8: 1 | G8: 1 | H8: 2 | I8: 1 | J8: 1 | L8: 3
A9: 3 | B9: Амгинская | C9: 57.5 | D9: 62 | E9: 42 | F9: 36 | G9: 28 | H9: 6 | I9: 4 | J9: 1 | K9: 12 | L9: 29
A10: 4 | B10: Анабарская | C10: 8 | D10: 8 | E10: 5 | F10: 1 | G10: 1 | H10: 3 | I10: 1 | K10: 3 | L10: 2
A11: 5 | B11: Булунская | C11: 12 | D11: 12 | E11: 7 | F11: 3 | G11: 2 | H11: 4 | I11: 1 | J11: 1 | K11: 4 | L11: 2
A12: 6 | B12: Верхневилюйская | C12: 57.5 | D12: 65 | E12: 42 | F12: 32 | G12: 30 | H12: 10 | I12: 7 | J12: 7 | K12: 10 | L12: 25
A13: 7 | B13: Верхнеколымская | C13: 4.5 | D13: 7 | E13: 5 | H13: 5 | I13: 3 | L13: 5
A14: 8 | B14: Верхоянская | C14: 21 | D14: 25 | E14: 13 | F14: 5 | G14: 4 | H14: 8 | I14: 4 | J14: 3 | K14: 2 | L14: 8
A15: 9 | B15: Вилюйская | C15: 26.75 | D15: 32 | E15: 20 | F15: 14 | G15: 12 | H15: 6 | I15: 3 | J15: 3 | K15: 6 | L15: 11
A16: 10 | B16: Горная | C16: 20 | D16: 20 | E16: 19 | F16: 16 | G16: 14 | H16: 2 | I16: 1 | J16: 1 | K16: 8 | L16: 10
A17: 11 | B17: Жиганская | C17: 9 | D17: 9 | E17: 7 | F17: 6 | G17: 6 | H17: 1 | I17: 1 | J17: 1 | K17: 5 | L17: 1
A18: 12 | B18: Кобяйская | C18: 25.5 | D18: 31 | E18: 18 | F18: 10 | G18: 10 | H18: 8 | I18: 4 | J18: 3 | K18: 2 | L18: 13
A19: 13 | B19: Ленская | C19: 35 | D19: 35 | E19: 15 | F19: 4 | G19: 3 | H19: 6 | I19: 1 | K19: 9 | L19: 6
A20: 14 | B20: Момская | C20: 20 | D20: 22 | E20: 14 | F20: 8 | G20: 8 | H20: 6 | I20: 4 | J20: 5 | K20: 1 | L20: 8
A21: 15 | B21: Намская | C21: 56.5 | D21: 65 | E21: 38 | F21: 30 | G21: 28 | H21: 8 | I21: 2 | J21: 6 | K21: 12 | L21: 20
A22: 16 | B22: Нижнеколымская | C22: 4 | D22: 3 | E22: 3 | F22: 2 | G22: 2 | H22: 1 | J22: 1 | K22: 1 | L22: 1
A23: 17 | B23: Нюрбинская | C23: 27 | D23: 31 | E23: 23 | F23: 15 | G23: 12 | H23: 7 | I23: 6 | J23: 4 | K23: 4 | L23: 15
A24: 18 | B24: Оймяконская | C24: 10.5 | D24: 11 | E24: 8 | F24: 7 | G24: 6 | H24: 1 | I24: 1 | K24: 3 | L24: 5
A25: 19 | B25: Олекминская | C25: 34.5 | D25: 42 | E25: 26 | F25: 14 | G25: 9 | H25: 7 | I25: 5 | J25: 7 | K25: 2 | L25: 17
A26: 20 | B26: Оленекская | C26: 14.5 | D26: 14 | E26: 12 | F26: 6 | G26: 2 | H26: 4 | I26: 4 | J26: 2 | K26: 7 | L26: 3
A27: 21 | B27: Среднеколымская | C27: 9 | D27: 9 | E27: 9 | F27: 2 | G27: 2 | H27: 7 | I27: 5 | J27: 1 | K27: 5 | L27: 3
A28: 22 | B28: Сунтарская* | C28: 60.75 | D28: 64 | E28: 45 | F28: 28 | G28: 26 | H28: 12 | I28: 8 | J28: 4 | K28: 14 | L28: 27
A29: 23 | B29: Таттинская | C29: 42.5 | D29: 49 | E29: 30 | F29: 23 | G29: 21 | H29: 7 | I29: 6 | J29: 3 | K29: 6 | L29: 21
A30: 24 | B30: Томпонская | C30: 13 | D30: 13 | E30: 12 | F30: 4 | G30: 2 | H30: 5 | I30: 5 | J30: 5 | K30: 3 | L30: 4
A31: 25 | B31: Усть-Алданская | C31: 73 | D31: 93 | E31: 57 | F31: 49 | G31: 48 | H31: 7 | I31: 5 | J31: 4 | K31: 14 | L31: 39
A32: 26 | B32: Усть-Майская | C32: 7 | D32: 7 | E32: 5 | F32: 3 | H32: 2 | I32: 1 | J32: 2 | K32: 1 | L32: 2
A33: 27 | B33: Усть-Янская | C33: 6 | D33: 6 | E33: 6 | F33: 3 | G33: 3 | H33: 2 | I33: 2 | J33: 1 | K33: 2 | L33: 3
A34: 28 | B34: Хангаласская | C34: 30.5 | D34: 46 | E34: 24 | F34: 18 | G34: 16 | H34: 5 | I34: 4 | J34: 6 | K34: 7 | L34: 11
A35: 29 | B35: Чурапчинская | C35: 48 | D35: 59 | E35: 37 | F35: 30 | G35: 27 | H35: 5 | I35: 3 | J35: 5 | K35: 12 | L35: 20
A36: 30 | B36: Мирнинская | C36: 4.5 | D36: 6 | E36: 3 | F36: 1 | G36: 1 | H36: 1 | L36: 3
A37: 31 | B37: Нерюнгринская | C37: 2 | D37: 2 | E37: 2 | H37: 2 | I37: 1 | J37: 1 | L37: 1
A38: 32 | B38: Эвено-Бытантайская | C38: 8 | D38: 9 | E38: 5 | H38: 3 | I38: 1 | K38: 1 | L38: 4
A39: 33 | B39: Якутская | C39: 12 | D39: 14 | E39: 13 | F39: 12 | G39: 10 | H39: 1 | J39: 2 | K39: 4 | L39: 7
A40: 34 | B40: Алданская | C40: 7 | D40: 6 | E40: 5 | H40: 4 | I40: 1 | K40: 2 | L40: 3
A41: 35 | B41: М.-Кангаласская | C41: 65 | D41: 57 | E41: 55 | F41: 45 | G41: 40 | H41: 9 | I41: 8 | J41: 9 | K41: 19 | L41: 27
A42: 36 | B42: Бердигестях ДБ* | C42: 7.5 | D42: 8 | E42: 4 | F42: 4 | G42: 4 | K42: 1 | L42: 3
A43: 37 | B43: Алданский БИЦ | C43: 1 | D43: 1 | E43: 1 | H43: 1 | K43: 1
A44: 38 | B44: Томмотский БИЦ | C44: 1 | D44: 1 | E44: 1 | K44: 1
B45: Итого по РС(Я) | C45: =SUM(C7:C44) -> 858 | D45: 962 | E45: 641 | F45: 436 | G45: 380 | H45: 169 | I45: 104 | J45: 91 | K45: 185 | L45: 365

Sheet т.10
I1: Таблица 10
A2: Электронные (сетевые) ресурсы
A4: № | B4: ЦБС | C4: Число | D4: из них | E4: Число | F4: из них | G4: Число | H4: Число | I4: Объем | J4: Объем
C5: б-к, | D5: им. | E5: б-к, | F5: пред. | G5: б-к, | H5: б-к, | I5: ЭК | J5: ЭБ
C6: созд. | D6: доступ | E6: им. | F6: док. | G6: им. | H6: им.
C7: ЭК | D7: к ЭК | E7: ЭБ | F7: в откр. | G7: сетевые | H7: инсталл.
D8: через | F8: доступе | G8: лиценз. | H8: док.
D9: Инт. | G9: док.
A10: 1 | B10: Абыйская | C10: 1 | D10: 1 | I10: 17270
A11: 2 | B11: Аллаиховская | C11: 1 | D11: 1 | I11: 6987
A12: 3 | B12: Амгинская | C12: 1 | D12: 1 | E12: 1 | F12: 1 | G12: 1 | H12: 1 | I12: 7703 | J12: 103
A13: 4 | B13: Анабарская | C13: 1 | D13: 1 | E13: 1 | F13: 1 | I13: 8391 | J13: 27
A14: 5 | B14: Булунская | C14: 1 | I14: 9410
A15: 6 | B15: Верхневилюйская | C15: 1 | D15: 1 | E15: 1 | F15: 1 | G15: 1 | H15: 4 | I15: 30454 | J15: 8886
A16: 7 | B16: Верхнеколымская | C16: 1 | D16: 1 | G16: 1 | H16: 1 | I16: 5744
A17: 8 | B17: Верхоянская | C17: 1 | D17: 1 | H17: 1 | I17: 34683
A18: 9 | B18: Вилюйская | C18: 1 | D18: 1 | E18: 1 | F18: 1 | I18: 24175 | J18: 209
A19: 10 | B19: Горная | C19: 1 | D19: 1 | E19: 1 | F19: 1 | G19: 1 | H19: 1 | I19: 10300 | J19: 121
A20: 11 | B20: Жиганская | C20: 1 | D20: 1 | I20: 10151
A21: 12 | B21: Кобяйская | C21: 1 | D21: 1 | E21: 1 | F21: 1 | H21: 1 | I21: 23353 | J21: 115
A22: 13 | B22: Ленская | C22: 1 | D22: 1 | G22: 1 | H22: 1 | I22: 21689
A23: 14 | B23: Момская | C23: 1 | D23: 1 | I23: 2140
A24: 15 | B24: Намская | C24: 1 | D24: 1 | G24: 1 | H24: 1 | I24: 24816
A25: 16 | B25: Нижнеколымская | C25: 1 | H25: 1 | I25: 8288
A26: 17 | B26: Нюрбинская | C26: 1 | D26: 1 | I26: 8151
A27: 18 | B27: Оймяконская | C27: 1 | I27: 9055
A28: 19 | B28: Олекминская | C28: 1 | D28: 1 | E28: 1 | F28: 1 | H28: 1 | I28: 23245 | J28: 11506
A29: 20 | B29: Оленекская | C29: 1 | D29: 1 | I29: 6641
A30: 21 | B30: Среднеколымская | C30: 1 | D30: 1 | I30: 5475
A31: 22 | B31: Сунтарская* | C31: 1 | D31: 1 | E31: 1 | F31: 1 | G31: 1 | H31: 1 | I31: 25455 | J31: 201
A32: 23 | B32: Таттинская | C32: 1 | D32: 1 | E32: 1 | F32: 1 | G32: 1 | H32: 1 | I32: 18106 | J32: 1086
A33: 24 | B33: Томпонская | C33: 1 | D33: 1 | E33: 1 | F33: 1 | G33: 1 | H33: 1 | I33: 7229 | J33: 2568
A34: 25 | B34: Усть-Алданская | C34: 1 | D34: 1 | E34: 1 | F34: 1 | H34: 1 | I34: 12526 | J34: 562
A35: 26 | B35: Усть-Майская | C35: 1 | D35: 1 | H35: 1 | I35: 6640
A36: 27 | B36: Усть-Янская | C36: 1 | I36: 15536
A37: 28 | B37: Хангаласская | C37: 1 | D37: 1 | E37: 1 | F37: 1 | G37: 1 | H37: 1 | I37: 41616 | J37: 1891
A38: 29 | B38: Чурапчинская | C38: 1 | D38: 1 | I38: 15847
A39: 30 | B39: Мирнинская | C39: 1 | D39: 1 | G39: 1 | H39: 1 | I39: 32126
A40: 31 | B40: Нерюнгринская | C40: 1 | D40: 1 | E40: 1 | F40: 1 | G40: 8 | H40: 4 | I40: 64905 | J40: 3208
A41: 32 | B41: Эвено-Бытантайская | C41: 1 | D41: 1 | I41: 2920
A42: 33 | B42: Якутская | C42: 1 | D42: 1 | G42: 1 | H42: 18 | I42: 177593
A43: 34 | B43: Алданская | C43: 1 | D43: 1 | E43: 1 | F43: 1 | G43: 1 | H43: 1 | I43: 75600 | J43: 7192
A44: 35 | B44: Мегино-Кангаласская | C44: 1 | D44: 1 | I44: 32542
A45: 36 | B45: ГБ г.Нерюнгри | C45: 1 | D45: 1 | G45: 1 | H45: 1 | I45: 30739
A46: 37 | B46: Бердигестях ДБ | G46: 1
A47: 38 | B47: Б-ка ГО "п. Жатай"
A48: 39 | B48: Алданский БИЦ
A49: 40 | B49: Томмотский БИЦ
B50: Итого по МБ | C50: =SUM(C10:C49) -> 36 | D50: 32 | E50: 14 | F50: 14 | G50: 23 | H50: 44 | I50: =SUM(I10:I49) -> 857501 | J50: =SUM(J10:J47) -> 37675
B51: НБ РС(Я) | C51: 1 | D51: 1 | E51: 1 | F51: 1 | G51: 1 | H51: 1 | I51: 737501 | J51: 64708
B52: Филиал НБ "ДТК" | C52: 1 | D52: 1 | I52: 55362
B53: РБС | C53: 1 | D53: 1 | E53: 1 | F53: 1 | G53: 1 | H53: 1 | I53: 33958 | J53: 22083
B54: ВСЕГО | C54: =SUM(C50:C53) -> 39 | D54: 35 | E54: 16 | F54: 16 | G54: 25 | H54: 46 | I54: 1684322 | J54: 124466

Sheet т.11
H1: Таблица 11
A2: Информационное обслуживание
A4: № | B4: ЦБС | C4: всего | D4: в том числе | F4: Выполнено справ. и конс. | H4: Число обращений удал. польз. (сайт) | J4: "+ -"
C5: док-ов | D5: МБА, ММБА, ЭДД | E5: вирт. чит. залы
C6: из фондов | F6: всего | G6: из них в удал. режиме | H6: 2020 | I6: 2021
C7: др. б-к
A8: 1 | B8: Абыйская | C8: 7 | D8: 7 | F8: 1711 | I8: 549 | J8: =I8-H8 -> 549
A9: 2 | B9: Аллаиховская | F9: 429 | H9: 64 | I9: 118 | J9: =I9-H9 -> 54
A10: 3 | B10: Амгинская | C10: 13 | D10: 4 | E10: 9 | F10: 4223 | G10: 1418 | H10: 5572 | I10: 9003 | J10: 3431
A11: 4 | B11: Анабарская | F11: 866 | H11: 147 | I11: 8 | J11: -139
A12: 5 | B12: Булунская | F12: 5116 | H12: 6281 | I12: 883 | J12: -5398
A13: 6 | B13: Верхневилюйская | C13: 97 | D13: 97 | F13: 5510 | H13: 559 | I13: 5679 | J13: 5120
A14: 7 | B14: Верхнеколымская | F14: 6640 | G14: 1461 | H14: 8916 | I14: 31297 | J14: 22381
A15: 8 | B15: Верхоянская | F15: 2963 | J15: 0
A16: 9 | B16: Вилюйская | F16: 8411 | G16: 2392 | H16: 25368 | I16: 21612 | J16: -3756
A17: 10 | B17: Горная | C17: 1308 | D17: 1308 | F17: 1618 | G17: 168 | H17: 4863 | I17: 3688 | J17: -1175
A18: 11 | B18: Жиганская | F18: 5137 | G18: 1093 | H18: 2033 | I18: 680 | J18: -1353
A19: 12 | B19: Кобяйская | F19: 5019 | G19: 649 | H19: 966 | I19: 4741 | J19: 3775
A20: 13 | B20: Ленская | C20: 126 | D20: 126 | F20: 9445 | G20: 463 | H20: 215 | I20: 1779 | J20: 1564
A21: 14 | B21: Момская | C21: 3 | D21: 3 | F21: 669 | J21: 0
A22: 15 | B22: Намская | C22: 65 | D22: 65 | F22: 4039 | H22: 3398 | I22: 22487 | J22: 19089
A23: 16 | B23: Нижнеколымская | F23: 1281 | H23: 261 | I23: 536 | J23: 275
A24: 17 | B24: Нюрбинская | F24: 7809 | J24: 0
A25: 18 | B25: Оймяконская | F25: 4586 | H25: 1831 | I25: 2262 | J25: 431
A26: 19 | B26: Олекминская | C26: 21 | D26: 21 | F26: 12997 | G26: 953 | H26: 874 | I26: 3234 | J26: 2360
A27: 20 | B27: Оленекская | C27: 63 | D27: 63 | F27: 1635 | H27: 956 | I27: 2628 | J27: 1672
A28: 21 | B28: Среднеколымская | F28: 1890 | G28: 100 | H28: 1 | I28: 145 | J28: 144
A29: 22 | B29: Сунтарская* | C29: 9 | D29: 9 | F29: 7336 | H29: 15107 | I29: 17211 | J29: 2104
A30: 23 | B30: Таттинская | C30: 788 | D30: 784 | E30: 4 | F30: 2904 | H30: 124092 | I30: 94618 | J30: -29474
A31: 24 | B31: Томпонская | C31: 5 | D31: 1 | E31: 4 | F31: 8015 | G31: 1290 | H31: 10025 | I31: 11779 | J31: 1754
A32: 25 | B32: Усть-Алданская | C32: 3 | D32: 3 | F32: 23030 | H32: 10726 | I32: 17073 | J32: 6347
A33: 26 | B33: Усть-Майская | C33: 676 | D33: 676 | F33: 3069 | H33: 7610 | I33: 6994 | J33: -616
A34: 27 | B34: Усть-Янская | C34: 46 | D34: 46 | F34: 4950 | G34: 1060 | H34: 333 | I34: 186 | J34: -147
A35: 28 | B35: Хангаласская | C35: 296 | D35: 175 | E35: 121 | F35: 9795 | G35: 91 | H35: 21626 | I35: 24888 | J35: 3262
A36: 29 | B36: Чурапчинская | C36: 28 | D36: 28 | F36: 4443 | G36: 680 | H36: 15627 | I36: 43398 | J36: 27771
A37: 30 | B37: Мирнинская | C37: 47 | D37: 47 | F37: 9746 | G37: 2352 | H37: 9489 | I37: 12446 | J37: 2957
A38: 31 | B38: Нерюнгринская | C38: 213 | E38: 213 | F38: 9510 | G38: 1876 | H38: 30734 | I38: 33648 | J38: 2914
A39: 32 | B39: Эвено-Бытантай | C39: 29 | D39: 29 | F39: 129 | G39: 12 | I39: 1036 | J39: 1036
A40: 33 | B40: Якутская | C40: 195 | D40: 195 | F40: 37775 | G40: 12278 | H40: 197169 | I40: 453821 | J40: 256652
A41: 34 | B41: Алданская | C41: 13 | D41: 2 | E41: 11 | F41: 3503 | G41: 29 | H41: 478776 | I41: 362513 | J41: -116263
A42: 35 | B42: Мег.-Кангаласская | C42: 107 | D42: 107 | F42: 3092 | G42: 222 | H42: 19090 | I42: 61850 | J42: 42760
A43: 36 | B43: ГБ г.Нерюнгри | F43: 6513 | H43: 2145 | I43: 9283 | J43: 7138
A44: 37 | B44: Бердигестях ДБ | F44: 120 | G44: 51 | H44: 15788 | I44: 2799 | J44: -12989
A45: 38 | B45: Б-ка ГО "п. Жатай" | C45: 1246 | E45: 1246 | F45: 566 | G45: 104 | H45: 620 | I45: 712 | J45: 92
A46: 39 | B46: Алданский БИЦ | F46: 323 | I46: 186 | J46: 186
A47: 40 | B47: Томмотский БИЦ | F47: 513 | I47: 1314 | J47: 1314
B48: ИТОГО по МБ | C48: =SUM(C8:C47) -> 5404 | D48: 3796 | E48: 1608 | F48: 227326 | G48: 28742 | H48: 1021262 | I48: 1267084 | J48: 245822
B49: НБ РС(Я) | C49: 17 | D49: 17 | F49: 44071 | G49: 25531 | H49: 751266 | I49: 881121 | J49: 129855
B50: Филиал НБ "ДТК" | F50: 279 | G50: 217 | H50: 6436 | I50: 15518 | J50: 9082
B51: РБС | C51: 153 | D51: 153 | F51: 4346 | G51: 2673 | H51: 9322 | I51: 23951 | J51: 14629
B52: Итого по РС(Я) | C52: =SUM(C48:C51) -> 5574 | D52: 3966 | E52: 1608 | F52: 276022 | G52: 57163 | H52: =SUM(H48:H51) -> 1788286 | I52: =SUM(I48:I51) -> 2187674 | J52: 399388
